Workbook

Sheet Récap
B5: 1 | C5: 2 | D5: 3 | E5: 4 | F5: 5 | G5: 6 | H5: 7 | I5: 8 | J5: 9 | K5: 10 | L5: 11 | M5: 12
A6: Produit | B6: Type de solution | C6: Classe produit | D6: Type de bâtiments visés | E6: Fabricant | F6: Matériaux | G6: Disponibilité Pays | H6: Stade d'évolution | I6: En quoi est-ce démontable ? | J6: Descriptif | K6: Site source | L6: Liens | M6: Images
A7: Assemblage Poteau / Toit | B7: Système constructif | C7: Assemblage | D7: Tout type | E7: ? | F7: Divers | G7: Inconnue | H7: Diffusion limitée | I7: Fixation mécanique par tige filetée | J7: La tige filetée a une durée de vie importante et permet de ne pas mettre en péril la structure assemblée en nécessitant un remplacement de l'élément assembleur. | K7: Publication | L7: Transformable_building_structures
A8: Ensemble plancher / revêtement / cloisons démontables 1 | B8: Système constructif | C8: Assemblage | D8: Sauf habitat individuel | E8: Etat Canadien | F8: Divers | G8: France | H8: Recherche et Développement | I8: Assemblage par fixation mécanique | J8: Voir schéma : Structure de plancher en dalles béton précontraintes sur profilés métalliques, plancher bois sur plots, cloisons démontables, réseaux passés entre le revêtement sur plot et la structure du plancher. | K8: Publication | L8: DfD_Guide_OfficeBldgs
A9: Ensemble plancher / revêtement / cloisons démontables 2 | B9: Système constructif | C9: Assemblage | D9: Sauf habitat individuel | E9: Etat Canadien | F9: Divers | G9: France | H9: Recherche et Développement | I9: Assemblage par fixation mécanique | J9: Voir schéma : Plancher en dalle béton sur bac métallique nervuré, posé sur structure métallique en profilés à âme évidée, faux plafond sous suspentes, passage des réseaux en faux plafond. | K9: Publication | L9: DfD_Guide_OfficeBldgs
A10: Liaison plancher / façade préfabriqués | B10: Système constructif | C10: Assemblage | D10: Tout type | E10: Etat Canadien | F10: Divers | G10: France | H10: Recherche et Développement | I10: Assemblage par fixation mécanique | J10: Voir schéma : Détail De section intérieure avec plancher en béton pré contraint fixé sur profilé métallique, panneaux de façade préfabriqués Trappe d'accès à l'élément d'assemblage plancher / panneau de façade supérieur. | K10: Publication | L10: DfD_Guide_OfficeBldgs
A11: Liaison plancher façades métallique | B11: Système constructif | C11: Assemblage | D11: Tout type | E11: Etat Canadien | F11: Divers | G11: France | H11: Recherche et Développement | I11: Assemblage par fixation mécanique, boulonnage | J11: Voir schéma : Détail de section extérieure en structure métallique avec mur rideau vitré en revêtement extérieur. | K11: Publication | L11: DfD_Guide_OfficeBldgs
A12: Assemblage de fenêtre par chevauchement | B12: Système constructif | C12: Assemblage | D12: Tout type | E12: ? | F12: Divers | G12: Inconnue | H12: Diffusion limitée | I12: Assemblage par fixation mécanique | J12: Les détails ci-dessous présentent la différence entre une configuration d'assemblage n'autorisant pas le démontage d'un vitrage (en haut à gauche) et une proposition de modification le permettant. Une modification de la géométrie de la jonction supérieure du vitrage a été adaptée en ne présentant qu'une butée en lieu et place d'une accroche par frottement a l'élément support en contact supérieur. La géométrie de ce dernier est également adaptée à cette nouvelle configuration. | K12: Publication | L12: Transformable_building_structures
A13: Liaison mur / toit | B13: Système constructif | C13: Assemblage | D13: Tout type | E13: ? | F13: Divers | G13: Inconnue | H13: Diffusion limitée | I13: Le retrait de la languette métallique permet de séparer les éléments | J13: L'illustration ci-contre décrit les différentes étapes du démontage des éléments. C'est un schéma de principe à adapter au cas étudié. | K13: Publication | L13: Transformable_building_structures
A14: Liaison plancher / cloison | B14: Système constructif | C14: Structure | D14: Tout type | E14: ? | F14: Divers | G14: Inconnue | H14: Diffusion limitée | I14: Voir le descriptif ci-dessous | J14: Les aspects ayant l'impact principal sur le potentiel de démontabilité de cette configuration sont les suivants : - Haut niveau d'indépendance entre les groupes assemblés ayant des fonctionnalités et des durées de vie différentes. - Utilisation de connexions démontables entre les groupes assemblés : support, mur de séparation, électricité et porte - Utilisation d'intermédiaires entre le mur de séparation et les installations électriques, ainsi qu'entre le mur de séparation et le plancher - Utilisation de pièces avec des fonctionnalités d'auto-verrouillage intégrés | K14: Publication | L14: Transformable_building_structures.pdf
A15: Mur flexible pour intégration prises électriques séparables | B15: Système constructif | C15: Assemblage | D15: Tout type | E15: ? | F15: PVC | G15: Inconnue | H15: Diffusion limitée | I15: Les prises électriques sont placés dans un rail métallique et ainsi désolidarisées du mur | J15: Ce type de rail peut se mettre en place dans différentes configurations, verticalement ou horizontalement. Ils permettent une maintenance et un remplacement des prises et du réseau électrique aisé. | K15: Publication | L15: Transformable_building_structures
A16: Plancher Béton Préfabriqué Démontable : Bestcon 30 | B16: Système constructif | C16: Assemblage | D16: Tout type | E16: Netherland | F16: Béton, Métal | G16: Pays-Bas | H16: Diffusion limitée | I16: Séparation des dalles de plancher + fixation par boulonnage | J16: Un élément métallique divise l'appui du plancher en 4 parties égales. Les dalles de plancher sont insérées dans chacune des cavités puis fixés par des vis sur les poteaux hauts et bas. | K16: Publication | L16: http://books.google.fr/books?id=n-kSIU8jIaUC&pg=PA69&lpg=PA69&dq=demountable+precast+system&source=bl&ots=PdOu-rCeF9&sig=Ir35YW_ruMVsFEKcsyVbMtdMlIw&hl=fr&sa=X&ei=lJcxU8GYJbCa0QWDlICYDA&ved=0CC4Q6AEwAA#v=onepage&q=demountable%20precast%20system&f=false
A17: Plancher Béton Préfabriqué Démontable : Cd 20 | B17: Système constructif | C17: Assemblage | D17: Tout type | E17: Netherland | F17: Béton, Métal | G17: Pays-Bas | H17: Diffusion limitée | I17: Les dalles peuvent être démontées simplement en enlevant le poteau supérieur | J17: Les dalles de plancher conçues à cet effet sont insérées dans des barrettes métalliques ancrées dans les poteaux. Les dalles sont fixées entres les poteaux hauts et bas. Les éléments de fixation on une longueur égale à la moitié de l'épaisseur des dalles. | K17: Publication | L17: http://books.google.fr/books?id=n-kSIU8jIaUC&pg=PA69&lpg=PA69&dq=demountable+precast+system&source=bl&ots=PdOu-rCeF9&sig=Ir35YW_ruMVsFEKcsyVbMtdMlIw&hl=fr&sa=X&ei=lJcxU8GYJbCa0QWDlICYDA&ved=0CC4Q6AEwAA#v=onepage&q=demountable%20precast%20system&f=false
A18: Plancher Béton Préfabriqué Démontable : Matrixbow | B18: Système constructif | C18: Structure | D18: Tout type | E18: Netherland | F18: Béton, Métal | G18: Pays-Bas | H18: Diffusion limitée | I18: Fixation mécanique du poteau inférieur au poteau supérieur via les éléments de planchers | J18: Les dalles de plancher sont fixées entre elles par des tiges filetées les traversant de par en par et venant se fixer sur des plaquettes métalliques incorporées dans les poteaux supérieurs et inférieurs. | K18: Publication | L18: http://books.google.fr/books?id=n-kSIU8jIaUC&pg=PA69&lpg=PA69&dq=demountable+precast+system&source=bl&ots=PdOu-rCeF9&sig=Ir35YW_ruMVsFEKcsyVbMtdMlIw&hl=fr&sa=X&ei=lJcxU8GYJbCa0QWDlICYDA&ved=0CC4Q6AEwAA#v=onepage&q=demountable%20precast%20system&f=false
A19: Core Wall | B19: Système constructif | C19: Structure | D19: Tout type | E19: Bensonwood | F19: Bois, Divers | G19: USA, UK, Japon, Canada | H19: Diffusion limitée | I19: Conçu pour faciliter la démontabilité des éléments constitutifs | J19: Ce mur est conçu pour préserver l'indépendance entre les différents éléments le composant. On peut ainsi démonter indépendamment chaque élément et les modifier sans engager la pérennité de l'élément structurel. | K19: Publication | L19: http://www.openprototype.com/projects/open1/features.html
A20: Plancher creux | B20: Système constructif | C20: Structure | D20: Tout type | E20: Bensonwood | F20: Bois, Divers | G20: USA, UK, Japon, Canada | H20: Diffusion limitée | I20: Conçu pour faciliter la démontabilité | J20: Ce plancher est conçu pour préserver l'indépendance entre les différents éléments le composant. On peut ainsi démonter indépendamment chaque élément et les modifier sans engager la pérennité de l'élément structurel. | K20: Publication | L20: http://www.openprototype.com/projects/open1/features.html
A21: Connexions Indirects | B21: Mode constructif | C21: Assemblage | D21: Tout type | E21: ? | F21: Divers | G21: France | H21: Très diffusé | I21: Principe de construction favorisant la déconstruction | J21: Les connecteurs directs s'emboîtent ou se chevauchent avec des composants, ce qui peut rendre difficile la déconstruction en raison du processus d'assemblage général. Les connecteurs indirects sont habituellement plus faciles à déconstruire de par leur interchangeabilité et l'indépendance des composants. Les connecteurs colmatés tels que des connecteurs collés ou soudés peuvent être pratiquement impossible à déconstruire, à moins que la charge de fixation soit très douce, comme pour le mortier de chaux. | K21: Publication | L21: Design for Deconstruction - SEDA Design Guide for Scotland
A22: Séparation des éléments au sein d'un plancher | B22: Mode constructif | C22: Structure | D22: Tout type | E22: ? | F22: Divers | G22: Inconnue | H22: Très diffusé | I22: La séparation des éléments dans un plancher autorise leur démontabilité | J22: Ce mode constructif peut être adapté à différents types de plancher. Les schéma ci-contre décrivent plusieurs types de configurations. Cela permet de désolidariser les différents éléments considérés, leur donnant un fort potentiel de démontabilité et permettre ainsi leur remplacement sans engager la pérennité des ouvrages structurels. | K22: Publication | L22: Transformable_building_structures
A23: Armoire Électrique | B23: Complexe | C23: Electricité | D23: Tout type | E23: Legrand | F23: Divers | G23: France | H23: Très diffusé | I23: cadre amovible et des flancs démontables individuellement | J23: Ce type d'armoire peut être déplacé en cas de modification de l'organisation des locaux techniques. La flexibilité des éléments facilite également les opérations de maintenance. | K23: Fabricant | L23: http://www.legrand.fr/professionnels/les-coffrets-xl3-160-isolant_371.html
A24: Armoire Informatique | B24: Complexe | C24: Electricité | D24: Tout type | E24: Legrand | F24: Divers | G24: France | H24: Très diffusé | I24: panneaux latéraux et arrières amovibles et structure entièrement démontable | J24: Ces baies se montent et se démontent simplement. Une accessibilité totale est garantie grâce aux panneaux latéraux et arrières amovibles et à la structure entièrement démontable. La flexibilité des éléments facilite également les opérations de maintenance. | K24: Fabricant | L24: http://www.legrand.fr/professionnels/baies-lcs2_2266.html
A25: Assemblage autour d'une étoile à 4 côtés | B25: Complexe | C25: Assemblage | D25: Tout type | E25: ? | F25: Métal | G25: Inconnue | H25: Diffusion limitée | I25: Fixation par glissement autour d'un élément fixe | J25: Ce type de fixation permet d'envisager diverses applications concernant l'assemblage de bâtiments par groupes d'éléments. Assemblage non structurel. | K25: Publication | L25: Transformable_building_structures
A26: Assemblage Bout À Bout | B26: Complexe | C26: Charpente | D26: Tout type | E26: Non spécifié | F26: Bois | G26: France | H26: Très diffusé | I26: Assemblage minimisant le recours au métal | J26: Par colle, clous ou vis, ce type d'assemblage permet d'éviter au maximum l'utilisation de métal dans l'acte de construire. Pas démontable si utilisation de colle. Attention également avec les pièces d'assemblage en bois qui avec le temps travaillent et rendent l'assemblage indémontable. Pour la démontabilité, assemblage bout à bout intéressant mais sans pièce de bois de liaison. | K26: Site spécialisé | L26: http://www.bois.com/decorer/bricoleurs/assemblages-classiques/assemblages-bout-bout
A27: Assemblage Démontable pour structure métallique | B27: Complexe | C27: Assemblage | D27: Industriel | E27: Universidad Politécnica de Cartagena | F27: Métal | G27: Espagne | H27: Diffusion limitée | I27: démontabilité comme propriété intrinsèque, fixations mécaniques par tiges filetées et boulons | J27: Assemblage développé par l'université de Carthagène dans le cadre d'un projet destiné à l'élaboration d'un type d'assemblage facilement démontable. L'élément intermédiaire représenté en vert et orange sur le schéma ci-dessous permet de désolidariser les deux éléments structurels et ainsi de faciliter leur démontage. | K27: Site spécialisé | L27: http://www.upct.es/~deyc/consulting.php
A28: Assemblage façades Centre Pompidou | B28: Complexe | C28: Assemblage | D28: Sauf habitat individuel | E28: ? | F28: Métal | G28: Inconnue | H28: Diffusion limitée | I28: Éléments mécaniques emboitables | J28: Possible pour bâtiments de grandes dimensions, industriel, tertiaire… Difficile pour le logement. | K28: Publication | L28: Transformable_building_structures
A29: Assemblage façades Yacht House | B29: Complexe | C29: Assemblage | D29: Tout type | E29: ? | F29: Métal | G29: Inconnue | H29: Diffusion limitée | I29: Éléments mécaniques emboitables et boulonnables | J29: La croix métallique en partie centrale permet de désolidariser les éléments assemblés. | K29: Publication | L29: Transformable_building_structures
A30: Assemblage poteau / toit structure métallique | B30: Complexe | C30: Assemblage | D30: Industriel | E30: spaciotempo | F30: Métal | G30: France | H30: Très diffusé | I30: La jonction est réalisée par une barre métallique démontable | J30: Assemblage destiné aux constructions démontables métalliques. Ce système permet de minimiser le temps de manipulation par les ouvriers en hauteur. | K30: Fabricant | L30: spaciotempo-cubiertas-desmontables.pdf
A31: Bloc Fixation Wc | B31: Complexe | C31: Sanitaires | D31: Tout type | E31: ErgoWall | F31: Divers | G31: Belgique | H31: Très diffusé | I31: Conçu pour une démontabilité facilitée | J31: Ce bloc WC intègre l'ensemble des éléments d'une installation sanitaire classique. Il est conçu pour être entièrement démontable. Il permet d'améliorer l'agrément intérieur tout en facilitant la démontabilité et l'adaptabilité de l'espace intérieur. | K31: Fabricant | L31: http://www.ergowall.com/produits.php
A32: Charpente Métallique | B32: Complexe | C32: Structure | D32: Industriel | E32: Galco (France Métal) | F32: Métal | G32: France | H32: Très diffusé | I32: Elément d'assemblage en filière sèche dévissable | J32: D'une grande solidité (les pièces galvanisées sont à l'abri de la rouille), ces bâtiments métalliques sont des construction facilement réalisables. Les charpentes métalliques sont adaptées à de multiples utilisations, en tant que sites de production, ateliers, locaux techniques associés à des mairies, centres de contrôle technique, etc. | K32: Fabricant | L32: http://www.galco-cm.com/
A33: Clapet - Vanne Démontable | B33: Complexe | C33: Canalisation | D33: Tout type | E33: Plasson | F33: Divers | G33: France | H33: Très diffusé | I33: Fixation par vis | J33: Raccords mécaniques destinés à l'assemblage des tubes en pression de DN inférieurs ou égaux à 160mm, utilisés pour les canalisations véhiculant de l'eau potable et de l'eau pour un usage général à des températures inférieures ou égales à 40°C (au-delà de 20°C, appliquer un coefficient de détimbrage), à l'attention des collectivités, des secteurs agricoles ou industriels . Application eau chaude EXCLUE. | K33: Fabricant | L33: http://www.plasson.fr/produit/clapet-vanne-demontable
A34: Climatiseur Au Sol Sans Unité Extérieure | B34: Complexe | C34: Climatisation | D34: Tout type | E34: Artel (easywind), Fimer (windy 4HP) | F34: Divers | G34: France | H34: Très diffusé | I34: Élément déplaçable facilement | J34: Ce type de climatiseur a comme intérêt principal d'être mobile. Sans fixations au sol, il peut être installé ou non en fonction du besoin. Il peut participer également à une démarche d'optimisation des ressources d'un bâtiment, en disposant des unités dans les pièces présentant ponctuellement des besoins. | K34: Fabricant | L34: http://www.airnaturel.com/climatisation-reversible-easywind.html?codesf=296084383&utm_medium=cpc&utm_campaign=Shopping-flux&utm_term=Climatisation+r%C3%A9versible+EASYWIND&utm_source=LeGuide%28via+Shopping+Flux%29
A35: Cloison Démontable Sgc Clip-In | B35: Complexe | C35: Menuiserie intérieure | D35: Tout type | E35: Dispano | F35: Métal | G35: France | H35: Diffusion limitée | I35: Les panneaux de verre sont clipsés l’un à l’autre grâce à des profilés de raccords minces et transparents | J35: Ce système comporte une rainure, façonnée sur la tranche verticale des vitrages. Grâce à des profilés de raccords minces et transparents, les panneaux de verre sont clipsés l’un à l’autre. La jonction des vitrages bord à bord est prévue pour les angles droits ou les raccords en T des cloisons de refends sur les circulations. | K35: Fabricant | L35: http://www.dispano.fr/bois-decoratifs/cloisons-demontables-XA190
A36: Cloisons Amovibles Et Démontables | B36: Complexe | C36: Cloisonnement intérieur | D36: Tout type | E36: ABCD International | F36: Vitrage, aluminium, bois, plâtre | G36: France | H36: Très diffusé | I36: démontabilité comme propriété intrinsèque | J36: Il existe un nombre important de types de cloisons amovibles offrant des modes de fixations variées. Se tourner vers les fabricants pour des détails sur ces techniques. | K36: Fabricant | L36: http://www.abcd-international.fr/fr/cloisons-demontables.html
A37: Complexe constructif bois | B37: Complexe | C37: Structure | D37: Habitat individuel | E37: ? | F37: Divers | G37: USA | H37: Diffusion limitée | I37: Fixation sur rails incorporés dans le plancher | J37: Les blocs SIP (Structural Insulated Panels) simplifient la connexion et l'assemblage entre le mur vertical et et le toit. Il combine le revêtement de toit, l'isolation et éventuellement la finition de plafond en un seul composant. L'intérêt du design de cet élément est qu'il peut être facilement démonté et utilisé comme un élément complet pour un autre bâtiment. La combinaison de différentes fonctionnalités comme élément structurel, isolant et revêtements intérieurs et extérieurs permet d'envisager une utilisation variée non destiné à être directement envoyé en décharge après l'utilisation. Cette configuration a cependant l'inconvénient de présenter des difficultés de recyclage compte-tenu de cette combinaison d'éléments hétérogènes. | K37: Publication | L37: DFD.pdf
A38: Connexion nœud | B38: Complexe | C38: Assemblage | D38: Tout type | E38: ? | F38: Bois | G38: Inconnue | H38: Très diffusé | I38: Pas de joint ciment ni collage - Fixation mécanique | J38: Les éléments structurels sont empilés les uns sur les autres, avec ou sans éléments de jonction. | K38: Publication | L38: CIB_W115_Conference_Proceedings_Pub_323
A39: Filtre de ventilation À Joint Sec | B39: Complexe | C39: Ventilation | D39: Tout type | E39: nasophocleous | F39: Divers | G39: France | H39: Diffusion limitée | I39: Élément posé sans fixation - Joint sec | J39: Ce type de filtre est facilement remplaçable. Les joints périphériques secs permettent d'allier une excellente étanchéité à une démontabilité aisée. Cette dernière propriété correspond pleinement à la nécessité de changer les filtres régulièrement afin d'éviter leur encrassement et d'engendrer des pertes de charges importantes sur les réseaux aérauliques. | K39: Batiproduits | L39: http://www.nasophocleous.com/default.aspx?articleID=383
A40: Groupe Chauffage Autonome | B40: Complexe | C40: Chauffage | D40: Industriel | E40: Losberger | F40: Divers | G40: France | H40: Très diffusé | I40: Groupe désolidarisé du bâtiment avec accès par l'extérieur | J40: Ce groupe chauffage autonome présente l'avantage d'être désolidarisé du bâtiment. La facilité de maintenance, et le manque d'encombrement intérieur sont en sont les principaux atouts. A noter cependant que ce type d'installation occasionne des pertes importantes dues à l'écart de température entre l'air chauffé et l'environnement extérieur. Il est destiné à une utilisation sur des bâtiments permanents et est entièrement démontable. | K40: Fabricant | L40: http://www.losberger.fr/?n=223-144#
A41: Imposte De Porte Démontable | B41: Complexe | C41: Menuiserie intérieure | D41: Tout type | E41: Malerba | F41: Vitrage, aluminium, bois, PVC | G41: France | H41: Très diffusé | I41: Fixation par verrou simple en partie basse | J41: Ce système d'imposte est simple à monter et s'adapte à différents types de menuiseries. L'imposte est fixée par un verrou simple en partie basse la calant dans la rainure en partie supérieure. | K41: Fabricant | L41: http://www.malerba.fr/be-np-177-0-portes-bois-imposte-demontable-sur-cf12h-va-et-vient | M41: *
A42: Joint Pegs - Assemblage d'éléments de structure bois | B42: Complexe | C42: Assemblage | D42: Tout type | E42: ? | F42: Bois | G42: France | H42: Diffusion limitée | I42: Assemblage conçu pour faciliter la démontabilité | J42: Le mode d'assemblage mécanique et simple est intéressant, cependant l'expérience montre qu'avec le temps les structures bois ont tendance à se déformer légèrement et à bloquer les éléments d'assemblage. Une tige de liaison métallique dévissable serait plus pertinente en vu d'une meilleur démontabilité à long terme. | K42: Publication | L42: http://timberpeg.com/gallery/joinery#
A43: Joint Spline - Assemblage structure bois | B43: Complexe | C43: Assemblage | D43: Tout type | E43: Bensonwood | F43: Bois | G43: USA, UK, Japon, Canada | H43: Diffusion limitée | I43: Conçu pour faciliter la démontabilité | J43: Le mode d'assemblage mécanique et simple est intéressant, cependant l'expérience montre qu'avec le temps les structures bois ont tendance à se déformer légèrement et à bloquer les éléments d'assemblage. Une tige de liaison métallique dévissable serait plus pertinente en vu d'une meilleur démontabilité à long terme. | K43: Publication | L43: http://www.bensonwood.com/about/timeline.cfm
A44: Jonction Plancher / Murs Verticaux | B44: Complexe | C44: Structure | D44: Tout type | E44: Gipen | F44: Bois | G44: France | H44: Très diffusé | I44: La jonction est réalisée par des platines démontables | J44: Le type de jonction présenté dans les illustrations ci-jointes n'est qu'un exemple parmi d'autres des jonctions planchers / murs verticaux réalisées par platines démontables. | K44: Fabricant | L44: http://www.gipen.fr/gamme-systemes-constructifs-professionnels/produits/ossature-bois-habitat-individuel.html#.Uzu5RPl_tzo
A45: Montant De Menuiserie Démontable | B45: Complexe | C45: Menuiserie extérieure | D45: Tout type | E45: ? | F45: Métal | G45: USA | H45: Diffusion limitée | I45: Conçu pour faciliter la démontabilité | J45: La finition extérieure est similaire à une finition traditionnelle afin de garantir l'étanchéité à l'eau. La partie intérieure est garnie avec un chambranle de bois pouvant être facilement enlevé, ce qui permet à la fenêtre d'être retirée de l'intérieur. | K45: Publication | L45: DFD.pdf
A46: Montant De Menuiserie Démontable | B46: Complexe | C46: Menuiserie extérieure | D46: Tout type | E46: ? | F46: Métal | G46: USA | H46: Diffusion limitée | I46: Conçu pour faciliter la démontabilité | J46: Une languette en aluminium est placé en extérieur. Elle permet une connexion étanche à l'eau entre la vitre et le revêtement, et permet à la fenêtre d'être facilement démontée. | K46: Publication | L46: DFD.pdf
A47: Nœud d'assemblage rotulien de structure métallique | B47: Complexe | C47: Assemblage | D47: Tout type | E47: Alexis Rochas | F47: Métal / résine plastique | G47: USA | H47: Recherche et Développement | I47: Démontable à volonté - Eléments fixés entre eux mécaniquement | J47: La structure de OCTA.BOT est composée de raccords universels abritant huit rotules permettant à chaque entretoise de tourner librement autour d'un point de travail commun. Le joint à rotule permet une adaptation de la structure aux mouvements. La combinaison de longueurs d'entretoises détermine automatiquement les angles complexes de l'ensemble et rend une liaison rigide autobloquante. Tous les raccords de OCTA.BOT sont réutilisables, permettant à la structure un démantèlement et une reconfiguration aisée. | K47: Site spécialisé | L47: http://www.dexigner.com/news/19753
A48: Panneaux De Plancher Métalliques | B48: Complexe | C48: Structure | D48: Tout type | E48: ? | F48: Métal | G48: France | H48: Très diffusé | I48: Fixation mécanique en filière sèche | J48: - Les panneaux de plancher sont creux pour permettre le passage des réseaux techniques, et ainsi faciliter leur démontage - Elément monobloc reposant sur des profilés en périphérie et fixation mécanique en filière sèche - Démontabilité du plancher et des éléments le traversant facilitée | K48: Publication | L48: http://fire.nist.gov/bfrlpubs/build02/PDF/b02153.pdf
A49: Pied De Poteau Mobile Sur Rails | B49: Complexe | C49: Structure | D49: Industriel | E49: Omega Structures | F49: Métal | G49: France | H49: Très diffusé | I49: Appui sur rails - Le pied de poteau peu être retiré après démontage des poteaux | J49: L'appui se faisant sur rail, le pied de poteau peu être retiré après démontage des poteaux. Le poteau peut être déplacé pour modifier un cloisonnement. Intéressant pour des locaux où le cloisonnement doit être modifié. | K49: Fabricant | L49: http://www.omegastructures.com/fr-FR/contenidos/66/autres.aspx
A50: Plinthes pour passage de réseaux | B50: Complexe | C50: Accessoire | D50: Tout type | E50: ? | F50: PVC | G50: Inconnue | H50: Recherche et Développement | I50: Le support est fixé par vis au mur et la plainte est simplement démontable, autorisant une intervention simple sur les câbles | J50: Différentes configurations sont possibles et peuvent s'appliquer à différents types de réseaux pour des utilisations variées (réseau électrique, fibre optique, chemin de câble pour utilisations spécifique comme les studios de musique,…). | K50: Publication | L50: plainte avec réseaux.pdf
A51: Plancher Bois Démontable | B51: Complexe | C51: Revêtement de sol | D51: Tout type | E51: Mobilierpliant | F51: Bois | G51: France | H51: Très diffusé | I51: Rainures d'assemblage | J51: Ce type de plancher sont conçus pour pouvoir être monté et démonté régulièrement sans difficultés. Les dalles de plancher s'assemblent entre elles via une association de crans mâle / femelle. | K51: Fabricant | L51: http://www.mobilierpliant.com/mobiaccueil.htm
A52: Rampe D'Accès Pmr | B52: Complexe | C52: Accessibilité | D52: Tout type | E52: Axsol | F52: Divers | G52: France | H52: Très diffusé | I52: Pliable - fixé mécaniquement - réutilisable | J52: Ce type de rampe d'accès peut être utilisé à titre temporaire ou permanent. Cela permet une adaptation aux exigences d'accès des bâtiments concernés. | K52: Fabricant | L52: http://www.axsol.fr/produit-axsol-accueil-rampes--3.htm
A53: Thermasteel | B53: Complexe | C53: Structure | D53: Tout type | E53: Thermasteel | F53: Bois | G53: USA | H53: Diffusion limitée | I53: Conçu pour favoriser la démontabilité | J53: Le système Thermasteel est composé de panneaux indépendants. Ces derniers intègrent un isolant rigide lié à une section en Métal légère par fixation sous haute chaleur et pression. Aucun adhésif n'est utilisé dans les composants ou les assemblages. Toutes les liaisons sont réalisées par des vis auto-taraudeuses. Comme toutes les connexions utilisées pour assembler le système Thermasteel sont simples et " sèches ", le système se prête très facilement au démontage. Un deuxième avantage de ce système est sa résistance à la moisissure. | K53: Publication | L53: http://www.thermasteelcorp.com/
A54: Toilettes sèches | B54: Complexe | C54: Sanitaires | D54: Habitat individuel | E54: ? | F54: Divers | G54: France | H54: Très diffusé | I54: L'ensemble est démontable facilement et rapidement de par sa configuration simple | J54: Ce type de sanitaire peut paraître non adapté à une utilisation dans des bureaux ou des bâtiments tertiaire. Il existe cependant aujourd'hui des nouveaux produits plus conventionnels permettant d'envisager une diffusion à plus grande échelle. | K54: Site spécialisé | L54: http://fr.wikipedia.org/wiki/Toilettes_s%C3%A8ches
A55: Truss Connexion - Assemblage toiture paroi | B55: Complexe | C55: Assemblage | D55: Tout type | E55: ? | F55: Métal | G55: USA | H55: Diffusion limitée | I55: Conçu pour faciliter la démontabilité | J55: Ce type d'assemblage permet de limiter le nombre de vis utilisées au sein de l'assemblage. La consommation de matière est ainsi réduite et permet de réduire le temps nécessaire au démontage de l'assemblage. | K55: Publication | L55: DFD.pdf
A56: Faux plafond bois - fixation par clips | B56: Complexe | C56: Plafond | D56: Tout type | E56: Hunter Douglas | F56: Bois | G56: France | H56: Très diffusé | I56: Fixation par clips | J56: Ce système est constitué de panneaux à base de lames de bois massif liées les unes aux autres par des tourillons aluminium. L'utilisation d'un système d'assemblage mâle/femelle des tourillons garantit un bon alignement des panneaux. Les panneaux démontables sont fixés à des porteurs en métal au moyen d'un clip. | K56: Fabricant | L56: http://www.archiexpo.fr/prod/hunter-douglas/panneaux-grillages-bois-faux-plafonds-50316-609216.html
A57: Revêtement murale aimanté | B57: Complexe | C57: Revêtement intérieur | D57: Tout type | E57: W-all Ventures | F57: Divers | G57: France | H57: Diffusion limitée | I57: Fixation par aimants fixés sur rails | J57: Ce système autorise une modification des revêtements muraux au gré des envies des occupants. Reste pour l'instant à un prix élevé et donc difficilement accessible à un large public. | K57: Site spécialisé | L57: http://blog.bmykey.com/category/immobilier/design-interieur/page/12/
A58: Faux plafond bois - fixation par crochets | B58: Complexe | C58: Plafond | D58: Tout type | E58: Arotcharen | F58: Divers | G58: France | H58: Diffusion limitée | I58: les dalles de bois sont assemblés à des câbles de maintien suspendus au plafond par des crochets | J58: Ce type de faux plafond a été utilisé dans le projet du siège social de Quicksilver conçu par l'architecte Patrick Arotcharen. La particularité de ce système et l'accroche par simples crochets à l'élément support. Cela facilite les opérations de maintenance et l'accès aux gaines techniques. | K58: Site spécialisé | L58: http://www.actineo.fr/reportage/quiksilver
A59: Plinthe En Liège | B59: Complexe | C59: Revêtement intérieur | D59: Tout type | E59: Alsacork | F59: liège naturel | G59: France | H59: Très diffusé | I59: Fixation par vissage sans colle du support et intégration simple de la plinthe | J59: Fourni avec l'attache en plastique, à visser sur le mur. La plinthe s'insère toute seule dans l'attache, et permet le passage de réseaux électriques. | K59: Fabricant | L59: http://www.alsacork.fr/boutique-online/mat%C3%A9riaux-annexes/plinthes
A60: "Velcro" Métallique | B60: Elément | C60: Assemblage | D60: Tout type | E60: Metaklett | F60: Métal | G60: Allemagne | H60: Diffusion limitée | I60: Permet de désassembler par simple séparation des deux éléments de fixation | J60: Cette technologie résiste à des températures jusqu'à 800 °C et permet de soutenir des charges jusqu'à 35 tonnes/m² si les charges sont appliquées parallèlement au système d'accroche. Son application est aujourd'hui limitée à l'industrie et à l'automobile. Ses propriétés intrinsèques permettent toutefois d'envisager raisonnablement des applications à grande échelle dans le domaine de la construction. | K60: Nobatek | L60: http://www.metaklett.de/technologie.html
A61: Adhésif Sur Panneaux De Bois Intérieur | B61: Elément | C61: Revêtement intérieur | D61: Tout type | E61: ? | F61: Bandes adhésives | G61: France | H61: Diffusion limitée | I61: Capacité adhésive adpatée à l'utilisation | J61: L'adhésif doit être choisie méticuleusement pour que l'intensité du collage permette à la fois de fixer correctement les panneaux de bois, tout en autorisant leur décollage sans trop de difficultés. | K61: Publication | L61: DFD.pdf
A62: Ancres À Enfoncer, Rattraper Verticalité | B62: Elément | C62: Accessoire | D62: Tout type | E62: Piveteau | F62: Métal | G62: France | H62: Très diffusé | I62: La fixation par enfoncement permet de retirer l'ancre par action de traction | J62: Pas pour bâtiment d'habitation ou régis par le code de la construction, pour terrasses, abris, structures légères de loisir. Galvanisées et recouvertes d'un laquage polyester vert, les ancres à enfoncer permettent de rattraper la verticalité du poteau après enfoncement. | K62: Fabricant | L62: http://www.piveteaubois.com/e-Sales/esa/default.jsp?mainpage=ItemList.jsp&denied=yes&%40where.CategoryParent%3ACategoryID%40op.eq%40comp.Items=b2c_QuincailleriePoteaux&utm_medium=PiedPoteauxAncres&utm_source=PIProduit
A63: Assemblage métallique simplifié | B63: Elément | C63: Assemblage | D63: Sauf habitat individuel | E63: ? | F63: Métal | G63: UK | H63: Diffusion limitée | I63: Les poutres disposent d'une platine venant se reposer sur une tige métallique - Même action possible lors de l'action du démontage | J63: Assemblage simplifié. Nécessite une platine adaptée prévue en usine. Adapté à des planchers fins et légers. | K63: Publication | L63: DfD_16082010
A64: Assemblage par glissement | B64: Elément | C64: Assemblage | D64: Sauf habitat individuel | E64: Quicon | F64: Métal | G64: UK | H64: Diffusion limitée | I64: Les poutres Métal sont glissés sur tiges boulonnées et reposent sur une platine adaptée avec trous oblongs - Même action possible lors de l'action du démontage | J64: Quicon system. Il existe également les systèmes MXB-5, Moducon-2000 et SMT systems (aucunes informations supplémentaires n'ont été trouvées). | K64: Publication | L64: DfD_16082010 http://www.newsteelconstruction.com/wp/quicon-wins-contract-at-ikea/
A65: Assemblage triangulaire | B65: Elément | C65: Assemblage | D65: Sauf habitat individuel | E65: Emilio Perez Piñero | F65: Métal | G65: Inconnue | H65: Recherche et Développement | I65: Permet de réaliser un assemblage triangulaire à l'aide d'un système tige filetée écrou | J65: Est adapté à une typologie particulière d'assemblage nécessitant une fixation triangulaire. | K65: Publication | L65: ETSA_16-1.pdf
A66: Assemblages Minimisant La Matière Utilisée | B66: Elément | C66: Assemblage | D66: Tout type | E66: Ines Gaisset | F66: Bois, Métal | G66: Inconnue | H66: Recherche et Développement | I66: Conçu pour faciliter la démontabilité et réduire la quantité de matière utilisée dans les assemblages | J66: Dans le cadre de son Master en Génie Civil et Environnement réalisé au MIT (Massachussetts Institute of Technology), Inès Gaisset présente les résultats de ses travaux concernant les évolutions possibles dans le domaine des bâtiments démontables. Elle présente dans ce rapport des typologies d'assemblages aux applications possibles dans la construction de bâtiments, permettant un démontage facilité des éléments assemblés. On peut voir ci-dessous à droite un exemple d'assemblage bois / bois. La découpe de petit cercle dans les angles de l'assemblage rend le démontage plus rapide. | K66: Publication | L66: Thèse de Ines Gaisset au MIT
A67: Bâche De Toit Simple et Double Peau | B67: Elément | C67: Couverture | D67: Industriel | E67: Omega Structures | F67: Polycarbonate | G67: France | H67: Très diffusé | I67: Utilisé dans le cadre de constructions temporaires démontables | J67: Ce type de revêtement de toit est largement utilisé dans des constructions éphémères démontables. | K67: Fabricant | L67: http://www.omegastructures.com/fr-FR/contenidos/65/toits.aspx
A68: Boite de réservation | B68: Elément | C68: Accessoire | D68: Tout type | E68: Uniboite | F68: PVC | G68: France | H68: Diffusion limitée | I68: Facilite la démontabilité et le remplacement des câbles emprisonnés dans le béton | J68: Permet un accès aux fourreaux de câbles emprisonnés dans une dalle béton. Evite les déchets liés à l'utilisation de matière (souvent PSE) comme coffrage perdu. | K68: Fabricant | L68: déchets-dde.pdf
A69: Bouche D'Aération Murale Et De Plafond | B69: Elément | C69: Ventilation | D69: Tout type | E69: Wallair | F69: PVC | G69: France | H69: Très diffusé | I69: fixation mécanique par vis | J69: Ce type de bouche est aujourd'hui largement diffusé dans tout les types de bâtiments. | K69: Revendeur | L69: http://www.conradpro.fr/ce/fr/product/560584/Aerateur-mural-et-de-plafond-Mini-Style;jsessionid=2BAC51C2E58A1CB58F78F1C9BAA278FC.ASTPCEN27
A70: Brise-soleils | B70: Elément | C70: Protection solaire | D70: Tout type | E70: Uniform | F70: Bois, Métal | G70: France | H70: Très diffusé | I70: Système innovant d'accroche des lames de bois permettant la démontabilité | J70: Les lames en bois sont montées sur des montants aluminium. Un système à vis breveté permet un démontage aisé des lames de bois. Les montants en aluminium sont également démontables (fixation mécanique par vis). | K70: Fabricant | L70: http://www.uniform.it/uni-wood-brise-soleil/?lang=en
A71: Calles Fixation Bardage | B71: Elément | C71: Assemblage | D71: Tout type | E71: Piveteau | F71: Métal | G71: France | H71: Très diffusé | I71: Permet de ne pas altérer les lames de bardages, restant facilement démontables | J71: Nécessite des lames de bardage adaptées. | K71: Fabricant | L71: http://www.piveteaubois.com/e-Sales/esa/default.jsp?mainpage=GalleryView.jsp&utm_medium=GammeBardageBois&%40where.ParentCategoryID=btc_bardages&utm_source=Piproduits
A72: Chapeaux De Poteaux | B72: Elément | C72: Sécurité | D72: Tout type | E72: Piveteau | F72: PVC | G72: France | H72: Très diffusé | I72: Fixation par emboitement, réutilisable | J72: Chapeaux de poteaux destinés à l'aménagement extérieur. | K72: Fabricant | L72: http://www.piveteaubois.com/e-Sales/esa/default.jsp?mainpage=GalleryView.jsp&utm_medium=GammeBardageBois&%40where.ParentCategoryID=btc_bardages&utm_source=Piproduits
A73: Chaussette isolante pour Éléments De Tuyauterie | B73: Elément | C73: Canalisation | D73: Industriel | E73: Carbone + | F73: non précisé | G73: France | H73: Très diffusé | I73: Chaussette isolante adaptée à l'élément à isoler- Fixation par sangles et velcro, réutilisable sur l'élément après chaque entretien | J73: - Absence de pont thermique - Confection sur mesure - Légèreté et tenue en forme - Longévité - Montage et démontage faciles - Amélioration des conditions de travail - Ininflammabilité - Pas de dégagement de fumées toxiques lors d'incendies | K73: Fabricant | L73: http://www.carboneplus.be/fr/produits-d-isolation/decamat/
A74: Clips Pour Revêtements de sol | B74: Elément | C74: Assemblage | D74: Tout type | E74: Piveteau | F74: Métal | G74: France | H74: Très diffusé | I74: Fixation sans colle | J74: Il existe plusieurs types de clips adaptés à différents revêtements de sol. Ce type de système est en application sur des planchers bois, lambris ou sols en PVC. | K74: Fabricant | L74: http://www.piveteaubois.com/e-Sales/esa/default.jsp?mainpage=GalleryView.jsp&utm_medium=GammeBardageBois&%40where.ParentCategoryID=btc_bardages&utm_source=Piproduits
A75: Clips Sur Panneaux De Bois Intérieur | B75: Elément | C75: Revêtement intérieur | D75: Tout type | E75: ? | F75: Métal | G75: France | H75: Diffusion limitée | I75: Les clips permettent de démonter facilement les panneaux de bois | J75: Ce type de clips permet une fixation des panneaux de bois sans altérer le mur support. | K75: Publication | L75: DFD.pdf
A76: Clous À Deux Têtes | B76: Elément | C76: Assemblage | D76: Tout type | E76: ? | F76: Métal | G76: France | H76: Très diffusé | I76: La deuxième tête fait office de levier pour démontage | J76: Les clous à "deux têtes" présentent l'avantage de faciliter le démontage des éléments fixés. Ils présentent la même résistance que les clous normaux et ne remettent donc pas en questions la solidité de l'assemblage concerné. Les clous sont enfoncés jusqu'à la première tête, laissant ainsi la seconde en surface. Il suffit ensuite d'utiliser la mâchoire de l'extrémité opposée d'un marteau pour les enlever. Ils doivent cependant être utilisés pour des assemblages masqués ou difficilement accessibles, pour éviter les risques de blessures ou de déchirement de vêtements. | K76: Publication | L76: http://www.systemed.fr/forum-bricolage/clou-a-deux-tetes-t45584.html
A77: Connecteur Mixte | B77: Elément | C77: Structure | D77: Tout type | E77: Piveteau | F77: Métal | G77: France | H77: Très diffusé | I77: Fixation par vis | J77: Eléments destinés à l'aménagement extérieur. Ils permettent de connecter les éléments d'une rambarde ou clôture en bois. | K77: Fabricant | L77: http://www.piveteaubois.com/e-Sales/esa/default.jsp?mainpage=GalleryView.jsp&utm_medium=GammeBardageBois&%40where.ParentCategoryID=btc_bardages&utm_source=PIproduits
A78: Dalle Autoporteuse Terrasse Préassemblé Pin | B78: Elément | C78: Revêtement de sol | D78: Tout type | E78: Piveteau | F78: bois | G78: France | H78: Très diffusé | I78: Ne nécessite aucun mode de fixation - Pas de désassemblage de chaque composant | J78: L'absence d'éléments intermédiaires de fixation au sol permet une indépendance de ces éléments, autorisant une adaptabilité des espaces extérieurs et une démontabilité aisée. | K78: Fabricant | L78: http://www.piveteaubois.com/e-Sales/esa/default.jsp?mainpage=GalleryView.jsp&denied=yes&%40where.ParentCategoryID=b2c_Terrasses&utm_source=PIProduit&utm_campaign=LesProduitsTerrasses
A79: Dalle Striée Terrasse Préassemblé | B79: Elément | C79: Revêtement de sol | D79: Tout type | E79: Piveteau | F79: bois | G79: France | H79: Très diffusé | I79: Fixation sur plots démontables | J79: Les plots facilitent la pose des dalles de plancher, s'adaptant aux légères variations de terrain. Se destine à des applications sur sol plats. | K79: Fabricant | L79: http://www.piveteaubois.com/e-Sales/esa/default.jsp?mainpage=GalleryView.jsp&denied=yes&%40where.ParentCategoryID=b2c_Terrasses&utm_source=PIProduit&utm_campaign=LesProduitsTerrasses
A80: Douilles Démontables | B80: Elément | C80: Electricité | D80: Tout type | E80: Non spécifié | F80: Métal, PVC | G80: France | H80: Très diffusé | I80: Démontage est beaucoup plus simple du fait d’un culot mieux dimensionné et de filetages mieux calibrés | J80: Les douilles démontables ont une structure proche de celle des modèles à baïonnette, mais leur montage-démontage est beaucoup plus simple du fait d’un culot mieux dimensionné et de filetages mieux calibrés. | K80: Forum | L80: http://www.maisonbrico.com/conseils-bricolage/problemes-douilles,2536.html
A81: Ecoulement De Douche Vertical | B81: Elément | C81: Canalisation | D81: Tout type | E81: Wedi | F81: Divers | G81: France | H81: Très diffusé | I81: Démontable pour faciliter nettoyage des canalisations | J81: Les écoulements verticaux présentent la particularité d'être facilement démontables. Ils permettent un démontage par la partie supérieure. | K81: Fabricant | L81: http://fr.wedi.de/dcadmin/dc_media/downloads/fr/_coulement_vertical_wedi_Fundo_FR_2013.pdf
A82: Elément d'encrage vissable | B82: Elément | C82: Fondation | D82: Structures légères | E82: Fixtoo | F82: Métal | G82: France | H82: Très diffusé | I82: Facilite démontabilité | J82: Adapté aux structures légères. Encrage manuel. | K82: Fabricant | L82: http://www.fixtoo.fr/index-famille-417100-lng-fr.html
A83: Équerre métallique d'assemblage pour Bois Ronds | B83: Elément | C83: Accessoire | D83: Tout type | E83: Piveteau | F83: Métal | G83: France | H83: Très diffusé | I83: Fixation par vis | J83: Élément intéressant car spécifique à l'assemblage de bois ronds (diamètre adapté). Démontable par une fixation au bois par vis. En revanche, le nombre important de vis limite son degré de démontabilité. | K83: Fabricant | L83: http://www.piveteaubois.com/e-Sales/esa/default.jsp?mainpage=GalleryView.jsp&utm_medium=GammeBardageBois&%40where.ParentCategoryID=btc_bardages&utm_source=PIproduits
A84: Équerre métallique d'assemblage Renforcée | B84: Elément | C84: Accessoire | D84: Tout type | E84: Piveteau | F84: Métal | G84: France | H84: Très diffusé | I84: Fixation par vis | J84: Démontable par une fixation au bois par vis. En revanche, le nombre important de vis limite son degré de démontabilité. | K84: Fabricant | L84: http://www.piveteaubois.com/e-Sales/esa/default.jsp?mainpage=GalleryView.jsp&utm_medium=GammeBardageBois&%40where.ParentCategoryID=btc_bardages&utm_source=PIproduits
A85: Faux Plafond Translucide Lumineux | B85: Elément | C85: Plafond | D85: Tout type | E85: Newmat | F85: PVC | G85: France | H85: Très diffusé | I85: Conçu pour démontabilité facilité | J85: Plafond translucide démontable classé M1 de résistance au feu, offrant une texture d'aspect verre dépoli permettant de jouer avec la lumière diffuse passant à travers les perforations. Les profils en PVC ou aluminium se fixent sur les murs. La toile est alors « clippée » sur le harpon (rail métallique) situé en périphérie du plafond. Cette opération se fait à chaud afin de donner de la souplesse à la toile et peut être répétée simplement en chauffant la toile. | K85: Fabricant | L85: http://newmat.com/fr/particuliers/nos-produits/gamme-newlight/index.html
A86: Fixation Invis | B86: Elément | C86: Assemblage | D86: Tout type | E86: Lamello | F86: Divers | G86: France | H86: Diffusion limitée | I86: Fixation par électro-aimant réversible | J86: Electro-aimant invisible et démontable : Le champ magnétique en rotation du MiniMag Mx entraîne la liaison, comme une roue dentée entraîne une autre. La tige filetée de la liaison se visse dans le boulon, sans contact direct et uniquement actionnée par le champ magnétique. Utilisation avec visseuse sans fil : Le mécanisme d’entrainement magnétique MiniMag Mx s’adapte sur toutes les visseuses sans fil ayant une rotation de 1200 – 1500 min-1 Démontable à l’infini : Pour dévisser la liaison, il suffit de changer le sens de rotation de la visseuse. | K86: Fabricant | L86: http://www.lamello.com/fr/accueil/assemblage-du-bois/systeme-invis-mx.html
A87: Fixation Par Velcro | B87: Elément | C87: Assemblage | D87: Tout type | E87: Velcro | F87: Velcro | G87: France | H87: Très diffusé | I87: Démontage par traction sur chaque élément | J87: Multiples applications envisageables (revêtements intérieurs murs et sols, éléments de second œuvre (main courante escalier, prise électriques, supports luminaires,…)). Ses qualités hygrophobes permettent également des utilisations en contact avec le milieu extérieur (terrasses, revêtement de toit, montants de menuiseries,...). Le système permet également de garantir une légère ventilation au niveau de l'assemblage, limitant ainsi l'apparition de moisissures. Cet avantage et également un inconvénient et proscrit son usage pour des assemblages traversants l'enveloppe du bâtiment. | K87: Nobatek | L87: http://www.velcro.fr//
A88: Fondations Vissables | B88: Elément | C88: Fondation | D88: Tout type | E88: Krinner | F88: Métal | G88: France | H88: Diffusion limitée | I88: Démontable par dévissage - Permet de laisser le terrain en état initial après déconstruction | J88: Pieux conçus pour des structures légères : abris jardins, panneaux solaires, panneaux publicitaires,… Ils peuvent également être utilisés pour des constructions bois sur des bâtiments avec un nombre limité d'étages et sur des sols propices. | K88: Fabricant | L88: http://www.krinner.fr/
A89: Grille De Ventilation | B89: Elément | C89: Ventilation | D89: Tout type | E89: Gavo | F89: Métal | G89: France | H89: Très diffusé | I89: Fixation par vis | J89: Les grilles de ventilation offrent un accès aisé aux conduites de ventilation, facilitant ainsi leur entretien. | K89: Fabricant | L89: http://www.gavo.net/fr/producten/
A90: Rails de maintien de bardage intérieur bois | B90: Elément | C90: Revêtement intérieur | D90: Tout type | E90: ? | F90: Métal | G90: France | H90: Très diffusé | I90: Les planches de bois sont empilées les unes sur les autres sans éléments de jonction | J90: Ces rails permettent une mise en place et un démontage rapide du revêtement intérieur. Les planches de bois étant séparés une intervention manuelle sans matériel lourd et possible. Ce type d'assemblage présente un avantage pratique certain mais un travail et nécessaire quand à son intégration esthétique. | K90: Publication | L90: DFD.pdf
A91: Manchons De repérage de Câbles | B91: Elément | C91: Electricité | D91: Tout type | E91: Legrand | F91: PVC | G91: France | H91: Très diffusé | I91: S'enroulent et se déroulent facilement autour du câble | J91: Manchons permettant de repérer les câbles. Généralement fait avec du ruban adhésif. Le ruban adhésif est moins facilement démontable et non réutilisable. | K91: Fabricant | L91: http://www.legrand.fr/presse/les-nouveaux-manchons-cab-3-de-reperage-et-d-isolation-une-innovation-legrand_1150.html
A92: Parquet flottant En Liège | B92: Elément | C92: Revêtement de sol | D92: Tout type | E92: Alsacork | F92: liège naturel | G92: France | H92: Très diffusé | I92: Fixation par clipsage sans colle | J92: Parquet liège en pose flottante avec système de clipsage en médium. Sous-couche en liège intégrée. Prêt à poser, sans colle. | K92: Fabricant | L92: http://www.alsacork.fr/boutique-online/catalog/62
A93: Pied De Poteau à âme métallique | B93: Elément | C93: Structure | D93: Structures légères | E93: Piveteau | F93: Métal | G93: France | H93: Très diffusé | I93: Fixation par vis ou boulonnage | J93: Adapté aux structures légères. Mise en place manuelle. | K93: Fabricant | L93: http://www.piveteaubois.com/e-Sales/esa/default.jsp?mainpage=GalleryView.jsp&utm_medium=GammeBardageBois&%40where.ParentCategoryID=btc_bardages&utm_source=Piproduits
A94: Pied De Poteau métallique | B94: Elément | C94: Structure | D94: Structures légères | E94: Piveteau | F94: Métal | G94: France | H94: Très diffusé | I94: Fixation par vis ou boulonnage | J94: Adapté aux structures légères. Mise en place manuelle. | K94: Fabricant | L94: http://www.piveteaubois.com/e-Sales/esa/default.jsp?mainpage=GalleryView.jsp&utm_medium=GammeBardageBois&%40where.ParentCategoryID=btc_bardages&utm_source=Piproduits
A95: Pied De Poteau métallique | B95: Elément | C95: Structure | D95: Structures légères | E95: Piveteau | F95: Métal | G95: France | H95: Très diffusé | I95: Fixation par vis ou boulonnage | J95: Adapté aux structures légères. Mise en place manuelle. | K95: Fabricant | L95: http://www.piveteaubois.com/e-Sales/esa/default.jsp?mainpage=GalleryView.jsp&utm_medium=GammeBardageBois&%40where.ParentCategoryID=btc_bardages&utm_source=PIproduits
A96: Pied De Poteau métallique Réglable | B96: Elément | C96: Structure | D96: Structures légères | E96: Piveteau | F96: Métal | G96: France | H96: Très diffusé | I96: Fixation par vis ou boulonnage | J96: Adapté aux structures légères. Mise en place manuelle. | K96: Fabricant | L96: http://www.piveteaubois.com/e-Sales/esa/default.jsp?mainpage=GalleryView.jsp&utm_medium=GammeBardageBois&%40where.ParentCategoryID=btc_bardages&utm_source=PIproduits
A97: Pied De Poteau métallique Vissable | B97: Elément | C97: Assemblage | D97: Structures légères | E97: Avenue du bois | F97: Métal | G97: France | H97: Très diffusé | I97: Le poteau est fixé par vis - La modification de la hauteur d'emprise peut faciliter le démontage sur site | J97: Permet de fixer les pied de poteau sur des pas de vis. Cela autorise une adaptation de la hauteur de poteau, notamment en cas de défaut de fabrication. Il permet également de faciliter le démontage en éloignant l'élément fixé de l'assemblage supérieur. Cela apporte dans un même temps un aspect esthétique en ne faisant pas apparaître la zone de fixation sur les parties périphériques du profilé bois. | K97: Revendeur | L97: http://www.avenue-du-bois.fr/pied-de-poteau-hauteur-101.html
A98: Pieux Vissés | B98: Elément | C98: Fondation | D98: Tout type | E98: Technopieux | F98: Métal | G98: France | H98: Très diffusé | I98: Peut être dévissé | J98: Le pieu vissé de marque « Techno Pieux » se présente comme une grande vis mise en œuvre dans le sol par une machine spécialisée, jusqu’à atteindre la capacité portante voulue. Dévissable, les Techno Pieux permettent de laisser le terrain en état initial après déconstruction. | K98: Fabricant | L98: http://www.technopieux.com/fr/produits/pieux-visses/
A99: Plafond Thermo fixé | B99: Elément | C99: Plafond | D99: Tout type | E99: Luxtend | F99: Divers | G99: Belgique | H99: Très diffusé | I99: Fixation par chauffage modifiable à volonté | J99: Ce type de plafond étirable offre de larges opportunités d'intégration dans l'espace intérieur. Les montages et démontages doivent être réalisés par un professionnel qualifié en possession du matériel nécessaire. | K99: Fabricant | L99: http://www.luxtend.fr/page-Demontable-42.html
A100: Plaque de Faux-Plafond | B100: Elément | C100: Plafond | D100: Tout type | E100: Knauf | F100: Plâtre | G100: France | H100: Très diffusé | I100: Disposé sans fixation sur profilés métallique de faux plafond | J100: Système largement diffusé se retrouvant dans un grand nombre de bâtiments de bureaux. | K100: Fabricant | L100: http://www.knauf-batiment.fr/chapitre/plafonds-demontables
A101: Plaque De Liège Naturel | B101: Elément | C101: Isolation intérieure | D101: Tout type | E101: Alsacork | F101: liège naturel | G101: France | H101: Très diffusé | I101: Fixation par vis | J101: Ce type de plaque peut être assemblé par vissage sans altération irréversible de la plaque. Elles sont couramment utilisées afin de maintenir une isolation thermique et acoustique efficace dans des zones imposant des montages et démontages fréquents. | K101: Fabricant | L101: http://www.alsacork.fr/isolation_produits.php#naturel
A102: Platines et support Réglables pour Terrasse | B102: Elément | C102: Structure | D102: Tout type | E102: Piveteau | F102: bois | G102: France | H102: Très diffusé | I102: Fixation par vis | J102: Permet de fixer une terrasse en laissant un écoulement d'air en sous face permettant une ventilation du vide sanitaire. | K102: Fabricant | L102: http://www.piveteaubois.com/e-Sales/esa/default.jsp?mainpage=GalleryView.jsp&utm_medium=GammeBardageBois&%40where.ParentCategoryID=btc_bardages&utm_source=PIproduits
A103: Plots Réglables pour Terrasse | B103: Elément | C103: Structure | D103: Tout type | E103: Piveteau | F103: bois | G103: France | H103: Très diffusé | I103: Dépose au sol sans fixation spécifique | J103: Permet de fixer une terrasse en laissant un écoulement d'air en sous face permettant une ventilation du vide sanitaire. | K103: Fabricant | L103: http://www.piveteaubois.com/e-Sales/esa/default.jsp?mainpage=GalleryView.jsp&utm_medium=GammeBardageBois&%40where.ParentCategoryID=btc_bardages&utm_source=Piproduits
A104: Raccords hydrauliques flexibles | B104: Elément | C104: Canalisation | D104: Tout type | E104: ? | F104: PVC | G104: France | H104: Diffusion limitée | I104: Tuyaux flexibles et éléments d'assemblage mécaniques (dévissables) | J104: Ce type de canalisation est déjà largement diffusé et présente de multiples avantages, notamment un coût faible comparé à de la tuyauterie métallique. | K104: Publication | L104: Plumbing Systems.pdf
A105: Revêtement de sol adaptable (Land Peel Furniture) | B105: Elément | C105: Revêtement intérieur | D105: Tout type | E105: Felipe zanardi | F105: Velcro | G105: Japon | H105: Diffusion limitée | I105: Fixation par velcro | J105: L'espace peut être adapté grâce à ce revêtement de sol partagé en modules dont l'organisation est adaptable à volonté grâce à un système de fixation par velcro. La fixation au sol se fait par simple dépose du bloc, sans éléments de fixation supplémentaire. | K105: Revendeur | L105: http://www.fubiz.net/2010/04/01/land-peel-furniture/
A106: Revêtement de Sol Multicouches | B106: Elément | C106: Revêtement de sol | D106: Tout type | E106: CFP | F106: PVC | G106: France | H106: Très diffusé | I106: Pose sans colle avec assemblage par clips | J106: Profil double verrou à serrage haute pression : garantie de tenue dans le temps. Blocage réversible : montage du parquet en avant et arrière Assemblage en bout à plat ou rotatif : rapidité et adaptation aux contraintes de pose Clic rotatif à angle faible : montage plus facile, passage sous tuyauteries | K106: Fabricant | L106: http://www.cf-parquet.com/pro/index.php?option=com_content&view=article&id=16&Itemid=38%E2%8C%A9=fr
A107: Revêtement Mural Intérieur Bois | B107: Elément | C107: Revêtement intérieur | D107: Tout type | E107: ? | F107: Bois, Métal | G107: France | H107: Très diffusé | I107: Fixation par encoches intégrées aux planches de revêtement | J107: Système nécessitant des planches de bois conçus pour ce type d'assemblage. Comme montré dans l'illustration ci-contre, la fixation peut être réalisée par vis, clips ou rails. | K107: Publication | L107: DFD.pdf
A108: Revêtement Routier En Kit | B108: Elément | C108: Revêtement extérieur | D108: Tout type | E108: Non spécifié | F108: Béton, asphalte | G108: France | H108: Très diffusé | I108: Assemblage par joints secs | J108: Chaussée urbaine "démontable" constituée d'alvéoles en béton pouvant être enlevées pour faciliter les interventions sur les réseaux souterrains. | K108: Site spécialisé | L108: http://www.lemoniteur.fr/131-etat-et-collectivites/article/actualite/523298-une-rue-en-kit-pour-faciliter-les-travaux-en-sous-sol
A109: Rondelle Thermo-Réactive | B109: Elément | C109: Assemblage | D109: Tout type | E109: ? | F109: Métal | G109: France | H109: Diffusion limitée | I109: Démontage par chauffage de l'assemblage | J109: L'ensemble est constitué d'une vis filetée et d'un anneau métallique thermo-réactif. L'assemblage est réalisé pour que la vis soit un tout petit peu plus étroite que le trou la recevant. L'anneau métallique est placé entre la tête de la vis et le trou de l'assemblage, comblant ainsi l'espace séparant les deux éléments. Lorsque l'on chauffe l'ensemble l'anneau métallique se dilate et libère la vis, pouvant ainsi passer à travers le trou et permettant de séparer facilement les deux éléments assemblés. | K109: Publication | L109: Barkkume_Disassembly_and_DfD
A110: Sabot De Solivage | B110: Elément | C110: Structure | D110: Tout type | E110: Piveteau | F110: Métal | G110: France | H110: Très diffusé | I110: Fixation mécanique par vis | J110: Démontable mais le nombre de vis peut limiter le potentiel de démontage de l'élément. | K110: Fabricant | L110: http://www.piveteaubois.com/e-Sales/esa/default.jsp?mainpage=GalleryView.jsp&utm_medium=GammeBardageBois&%40where.ParentCategoryID=btc_bardages&utm_source=Piproduits
A111: Sol Pvc sans colle 25M² | B111: Elément | C111: Revêtement de sol | D111: Tout type | E111: Gerflor | F111: PVC | G111: France | H111: Très diffusé | I111: Pose facile sans colle sans éléments de fixation | J111: Ce sol PVC absorbe les irrégularités et peut donc se poser sur tout type de sol y compris un ancien carrelage.Adapté à la rénovation. Pose facile sans colle (jusqu'à 25m²). | K111: Fabricant | L111: http://www.leroymerlin.fr/v3/p/produits/sol-pvc-aerotex-timeless-chene-gris-tarkett-4-m-e159189
A112: Système d'assemblage pour structure | B112: Elément | C112: Assemblage | D112: Tout type | E112: ? | F112: Métal | G112: Inconnue | H112: Très diffusé | I112: Assemblage par élément indépendant facilitant la démontabilité de chaque éléments | J112: Cette configuration permet un assemblage et un démontage simple des éléments constitutifs. Il permet d'envisager fortement une réutilisation des éléments assemblés sur d'autres bâtiments, le démontage ne détériorant pas ces éléments au niveau de leurs points d'assemblage. | K112: Publication | L112: 32 DEVELOPMENT OF INDUSTRIALIZED, FLEXIBLE AND DEMOUNTABLE MULTI-FAMILY BUILDING IFD COLLECTIVE HOUSING
A113: Système De Fixation de Faux-Plafond | B113: Elément | C113: Plafond | D113: Tout type | E113: Placo | F113: Métal | G113: France | H113: Très diffusé | I113: Fixation par dépose sans fixation spécifique | J113: Technique largement répandue dans les bâtiments tertiaires. Les rails peuvent accueillir un grand nombre de types de plaques de faux plafonds et offrent une grande flexibilité concernant les dimensions. | K113: Fabricant | L113: www.placo.fr/content/download/122585/1534247/file/A03.001a.pdf‎
A114: Système de joint pour pavés | B114: Elément | C114: Assemblage | D114: Tout type | E114: ? | F114: Caoutchouc | G114: USA | H114: Recherche et Développement | I114: Conçu pour faciliter la démontabilité | J114: Au lieu de petits pavés usinés, il est possible de mettre en place des sections de pavés plus grandes pouvant être déplacés d'un seul bloc à l'aide de matériels lourds. Les joints secs sont couramment utilisés pour le revêtement de sol. Il semblerait intéressant de s'intéresser aux possibilités d'utilisation de ce type d'approche par exemple pour la construction de dalles sur terre-plein. | K114: Publication | L114: DFD.pdf
A115: Système de Mur de Rétention Modulaire | B115: Elément | C115: Structure | D115: Tout type | E115: / | F115: Béton | G115: USA | H115: Diffusion limitée | I115: Fixation par poids propre - type "Lego" | J115: Modules pour murs de soutènement fixés par emboîtement des éléments en béton utilisant la gravité et les forces latérales naturels pour résister aux charges. Ce système modulaire préfabriqué est intrinsèquement flexible et s'adapte à une grande variété de contraintes propres au site de construction. L'absence des mortiers et des moyens de renfort supplémentaires rends les modules facilement démontables et réutilisables. | K115: Publication | L115: Design_for_Disassembly-guide
A116: Technologie De Fondations à Faible Impact (L.I.F.T.) | B116: Elément | C116: Fondation | D116: Tout type | E116: ? | F116: Béton | G116: France | H116: Diffusion limitée | I116: Ces éléments peuvent être enlevés du sol par soulèvement | J116: Les tiges métalliques permettent d'ancrer les plots bétons dans le sol par enfoncement (les plots sont percés de part en part). Les plots peuvent être retirés après avoir enlever ces tiges. | K116: Publication | L116: Design_for_Disassembly-guide
A117: Terrasse Pin Clipsée | B117: Elément | C117: Revêtement de sol | D117: Tout type | E117: Piveteau | F117: bois | G117: France | H117: Très diffusé | I117: Fixation par clips | J117: Lames pour terrasses autorisant la fixation par clips. | K117: Fabricant | L117: http://www.piveteaubois.com/e-Sales/esa/default.jsp?mainpage=GalleryView.jsp&denied=yes&%40where.ParentCategoryID=b2c_Terrasses&utm_source=PIProduit&utm_campaign=LesProduitsTerrasses
A118: Maçonnerie sans joints post tendue | B118: Système constructif | C118: Structure | D118: tout type | E118: Kyushu University | F118: Béton | G118: Japon | H118: Recherche et Développement | I118: Pas de joints. Assemblages mécanique | K118: Kyushu University
A119: AGRIBOARD | B119: système constructif | C119: Assemblage | D119: Tout type | E119: Agriboard | F119: Bois | G119: USA | H119: Marché | I119: Eléments d'assemblage mécanique plancher / mur | K119: Agriboard
A120: Rail | B120: Elément | C120: Assemblage | D120: tout type | E120: Grad | F120: plastic | G120: France | H120: Marché | I120: Le clips permet le montage et le démontage des lames de terrasse ou de bardage | L120: http://www.architecturebois.fr/1er-clip-demontable-pour-lames-de-terrasses-et-de-bardage/

Sheet Fiches
B3: Classement (1 : OK, 2 : indirect, 3: éloigné) | C3: 1 | D3: 1 | E3: 1 | F3: 1 | G3: 1 | H3: 1 | I3: 1 | J3: 1 | K3: 1 | L3: 1 | M3: 1 | N3: 1 | P3: 2 | Q3: 1 | R3: 2 | S3: 1 | T3: 1 | U3: 1 | V3: 1 | W3: 1 | X3: 2 | Y3: 1 | Z3: 1 | AA3: 1 | AB3: 1 | AC3: 1 | AD3: 1 | AE3: 1 | AF3: 1 | AG3: 1 | AH3: 1 | AI3: 1 | AJ3: 1 | AK3: 1 | AL3: 1 | AM3: 1 | AN3: 1 | AO3: 1 | AP3: 1 | AQ3: 1 | AR3: 1 | AS3: 1 | AT3: 1 | AU3: 2 | AV3: 2 | AW3: 1 | AX3: 1 | AY3: 1 | AZ3: 1 | BA3: 1 | BB3: 1 | BC3: 1 | BD3: 1 | BE3: 1 | BF3: 1 | BG3: 1 | BH3: 1 | BI3: 1 | BJ3: 1 | BK3: 1 | BL3: 1 | BM3: 1 | BP3: 1 | BQ3: 1 | BR3: 1 | BS3: 1 | BT3: 1 | BU3: 1 | BV3: 1 | BW3: 1 | BZ3: 1 | CA3: 2 | CB3: 1 | CC3: 1
B4: Commentaire | D4: Pas pour bâtiment d'habitation ou régis par le code de la construction, pour terrasses, abris, structures légères de loisir | G4: Assemblage non structurel | H4: Pas démontable si utilisation de colle. Attention également avec les pièces d'assemblage en bois qui avec le temps travaillent et rendent l'assemblage indémontable Pour la démontabilité, assemblage bout à bout intéressant mais sans pièce de bois de liaison | I4: Possible pour bâtiments de grandes dimensions, industriel, tertiaire… Difficile pour le logement | K4: Pour structures lourdes. Peu adapté au logement individuel | L4: ?? De quoi il s'agit ? | M4: Pour structures lourdes. Peu adapté au logement individuel | N4: Pour structures lourdes. Peu adapté au logement individuel | U4: Aménagement extérieur | X4: Expliquer l'intérêt par rapport à un climatiseur normal. Déplaçable, pas de fixation, peut être disposé dans les pièces qui en ont besoin, optimisation | AD4: A quoi ça sert ? | AJ4: Plutôt pour des bâtiments de grandes dimensions | AK4: Plutôt pour des bâtiments de grandes dimensions | AR4: Détails sur la démontabilité réelle ? Démontabilité des panneaux entre eux ou des composants du plancher ? | AS4: A part si info supplémentaire, Pas pour tout type de bâtiment. Pour les structures non habitables, légères, terrasses... | AU4: Faire commentaire. C'est le système qui est démontable ou intéressant car décentralisé ? | AV4: Je ne vois pas en quoi c'est particulièrement démontable | BA4: Très diffusée ? | BE4: Goulotte non ??? | BI4: Pour Structures légères. Pas de bâtiment d'habitation ou structure de toiture de terrasse | BK4: Comment ça se démonte ? | BO4: Lien source local. | BP4: Idée similaire au précédent. Démontage facile du produit car en Velcro ? | BS4: Très courant. | BX4: intérêt éléments métalliques ? | BY4: doublon
B6: Produit | C6: Assemblage Poteau / Toit | D6: Ensemble plancher / revêtement / cloisons démontables 1 | E6: Ensemble plancher / revêtement / cloisons démontables 2 | F6: Liaison plancher / façade préfabriqués | G6: Liaison plancher façades métallique | H6: Assemblage de fenêtre par chevauchement | I6: Liaison mur / toit | J6: Liaison plancher / cloison | K6: Mur pour intégration prises électriques évolutives | L6: Plancher Béton Préfabriqué Démontable : Bestcon 30 | M6: Plancher Béton Préfabriqué Démontable : Cd 20 | N6: Plancher Béton Préfabriqué Démontable : Matrixbow | O6: Core Wall | P6: Plancher creux | Q6: Connexions Indirects | R6: Séparation des éléments au sein d'un plancher | S6: Armoire Électrique | T6: Assemblage autour d'une étoile à 4 côtés | U6: Assemblage Bout À Bout | V6: Assemblage Démontable pour structure métallique | W6: Assemblage façades Centre Pompidou | X6: Assemblage façades Yacht House | Y6: Assemblage poteau / toit structure métallique | Z6: Bloc Fixation Wc | AA6: Charpente Métallique | AB6: Cloison Démontable Sgc Clip-In | AC6: Cloisons Amovibles Et Démontables | AD6: Complexe constructif bois | AE6: Connexion nœud | AF6: Groupe Chauffage Autonome | AG6: Imposte De Porte Démontable | AH6: Joint Spline - Assemblage structure bois | AI6: Jonction Plancher / Murs Verticaux | AJ6: Montant De Menuiserie Démontable | AK6: Montant De Menuiserie Démontable | AL6: Nœud d'assemblage rotulien de structure métallique | AM6: Panneaux De Plancher Métalliques | AN6: Plinthes pour passage de réseaux | AO6: Thermasteel | AP6: Truss Connexion - Assemblage toiture paroi | AQ6: Faux plafond bois - fixation par clips | AR6: Revêtement murale aimanté | AS6: Faux plafond bois - fixation par crochets | AT6: Plinthe En Liège | AU6: "Velcro" Métallique | AV6: Adhésif Sur Panneaux De Bois Intérieur | AW6: Assemblage métallique simplifié | AX6: Assemblage par glissement | AY6: Assemblage triangulaire | AZ6: Bâche De Toit Simple et Double Peau | BA6: Boite de réservation | BB6: Brise-soleils | BC6: Calles Fixation Bardage | BD6: Chaussette isolante pour Éléments De Tuyauterie | BE6: Clips Pour Revêtements de sol | BF6: Clips Sur Panneaux De Bois Intérieur | BG6: Clous À Deux Têtes | BH6: Dalle Autoporteuse Terrasse Préassemblé Pin | BI6: Elément d'encrage vissable | BJ6: Fixation Invis | BK6: Fixation Par Velcro | BL6: Fondations Vissables | BM6: Rails de maintien de bardage intérieur bois | BN6: Manchons De repérage de Câbles | BO6: Pied De Poteau métallique Vissable | BP6: Pieux Vissés | BQ6: Plafond Thermo fixé | BR6: Plaque de Faux-Plafond | BS6: Platines et support Réglables pour Terrasse | BT6: Plots Réglables pour Terrasse | BU6: Raccords hydrauliques flexibles | BV6: Revêtement de sol adaptable (Land Peel Furniture) | BW6: Revêtement Routier En Kit | BX6: Rondelle Thermo-Réactive | BY6: Sabot De Solivage | BZ6: Sol Pvc sans colle 25M² | CA6: Système d'assemblage pour structure | CB6: Système De Fixation de Faux-Plafond | CC6: Système de joint pour pavés | CD6: Système de Mur de Rétention Modulaire | CE6: Technologie De Fondations à Faible Impact (L.I.F.T.) | CF6: Terrasse Pin Clipsée | CG6: Maçonnerie sans joints post tendue | CH6: AGRIBOARD | CI6: Rail | CJ6: Plancher | CK6: Bolted Column Connection | CL6: REDUCE | CM6: Connecteurs KNAPP (RICON - FASCO) | CN6: HALFEN | CO6: Cassette Longitude | CP6: Façade F4
A7: 1 | B7: Type de solution | C7: Système constructif | D7: Système constructif | E7: Système constructif | F7: Système constructif | G7: Système constructif | H7: Système constructif | I7: Système constructif | J7: Système constructif | K7: Système constructif | L7: Système constructif | M7: Système constructif | N7: Système constructif | O7: Système constructif | P7: Système constructif | Q7: Mode constructif | R7: Mode constructif | S7: Complexe | T7: Complexe | U7: Complexe | V7: Complexe | W7: Complexe | X7: Complexe | Y7: Complexe | Z7: Complexe | AA7: Complexe | AB7: Complexe | AC7: Complexe | AD7: Complexe | AE7: Complexe | AF7: Complexe | AG7: Complexe | AH7: Complexe | AI7: Complexe | AJ7: Complexe | AK7: Complexe | AL7: Complexe | AM7: Complexe | AN7: Complexe | AO7: Complexe | AP7: Complexe | AQ7: Complexe | AR7: Complexe | AS7: Complexe | AT7: Complexe | AU7: Elément | AV7: Elément | AW7: Elément | AX7: Elément | AY7: Elément | AZ7: Elément | BA7: Elément | BB7: Elément | BC7: Elément | BD7: Elément | BE7: Elément | BF7: Elément | BG7: Elément | BH7: Elément | BI7: Elément | BJ7: Elément | BK7: Elément | BL7: Elément | BM7: Elément | BN7: Elément | BO7: Elément | BP7: Elément | BQ7: Elément | BR7: Elément | BS7: Elément | BT7: Elément | BU7: Elément | BV7: Elément | BW7: Elément | BX7: Elément | BY7: Elément | BZ7: Elément | CA7: Elément | CB7: Elément | CC7: Elément | CD7: Elément | CE7: Elément | CF7: Elément | CG7: Système constructif | CH7: système constructif | CI7: Elément | CJ7: Système constructif | CK7: Elément | CL7: Système constructif | CM7: Elément | CN7: Elément | CO7: Element | CP7: Système constructif
A8: 2 | B8: Classe produit | C8: Assemblage | D8: Assemblage | E8: Assemblage | F8: Assemblage | G8: Assemblage | H8: Assemblage | I8: Assemblage | J8: Structure | K8: Assemblage | L8: Assemblage | M8: Assemblage | N8: Structure | O8: Structure | P8: Structure | Q8: Assemblage | R8: Structure | S8: Electricité | T8: Assemblage | U8: Charpente | V8: Assemblage | W8: Assemblage | X8: Assemblage | Y8: Assemblage | Z8: Sanitaires | AA8: Structure | AB8: Menuiserie intérieure | AC8: Cloisonnement intérieur | AD8: Structure | AE8: Assemblage | AF8: Chauffage | AG8: Menuiserie intérieure | AH8: Assemblage | AI8: Structure | AJ8: Menuiserie extérieure | AK8: Menuiserie extérieure | AL8: Assemblage | AM8: Structure | AN8: Accessoire | AO8: Structure | AP8: Assemblage | AQ8: Plafond | AR8: Revêtement intérieur | AS8: Plafond | AT8: Revêtement intérieur | AU8: Assemblage | AV8: Revêtement intérieur | AW8: Assemblage | AX8: Assemblage | AY8: Assemblage | AZ8: Couverture | BA8: Accessoire | BB8: Protection solaire | BC8: Assemblage | BD8: Canalisation | BE8: Assemblage | BF8: Revêtement intérieur | BG8: Assemblage | BH8: Revêtement de sol | BI8: Fondation | BJ8: Assemblage | BK8: Assemblage | BL8: Fondation | BM8: Revêtement intérieur | BN8: Electricité | BO8: Assemblage | BP8: Fondation | BQ8: Plafond | BR8: Plafond | BS8: Structure | BT8: Structure | BU8: Canalisation | BV8: Revêtement intérieur | BW8: Revêtement extérieur | BX8: Assemblage | BY8: Structure | BZ8: Revêtement de sol | CA8: Assemblage | CB8: Plafond | CC8: Assemblage | CD8: Structure | CE8: Fondation | CF8: Revêtement de sol | CG8: Structure | CH8: Assemblage | CI8: Assemblage | CJ8: Structure | CK8: Assemblage | CL8: Assemblage | CM8: Assemblages | CN8: Assemblage | CO8: Bardage | CP8: Paroi
A9: 3 | B9: Type de bâtiments visés | C9: Tout type | D9: Sauf habitat individuel | E9: Sauf habitat individuel | F9: Tout type | G9: Tout type | H9: Tout type | I9: Tout type | J9: Tout type | K9: Tout type | L9: Tout type | M9: Tout type | N9: Tout type | O9: Tout type | P9: Tout type | Q9: Tout type | R9: Tout type | S9: Tout type | T9: Tout type | U9: Tout type | V9: Industriel | W9: Sauf habitat individuel | X9: Tout type | Y9: Industriel | Z9: Tout type | AA9: Industriel | AB9: Tout type | AC9: Tout type | AD9: Habitat individuel | AE9: Tout type | AF9: Industriel | AG9: Tout type | AH9: Tout type | AI9: Tout type | AJ9: Tout type | AK9: Tout type | AL9: Tout type | AM9: Tout type | AN9: Tout type | AO9: Tout type | AP9: Tout type | AQ9: Tout type | AR9: Tout type | AS9: Tout type | AT9: Tout type | AU9: Tout type | AV9: Tout type | AW9: Sauf habitat individuel | AX9: Sauf habitat individuel | AY9: Sauf habitat individuel | AZ9: Industriel | BA9: Tout type | BB9: Tout type | BC9: Tout type | BD9: Industriel | BE9: Tout type | BF9: Tout type | BG9: Tout type | BH9: Tout type | BI9: Structures légères | BJ9: Tout type | BK9: Tout type | BL9: Tout type | BM9: Tout type | BN9: Tout type | BO9: Structures légères | BP9: Tout type | BQ9: Tout type | BR9: Tout type | BS9: Tout type | BT9: Tout type | BU9: Tout type | BV9: Tout type | BW9: Tout type | BX9: Tout type | BY9: Tout type | BZ9: Tout type | CA9: Tout type | CB9: Tout type | CC9: Tout type | CD9: Tout type | CE9: Tout type | CF9: Tout type | CG9: tout type | CH9: Tout type | CI9: tout type | CJ9: Tout type | CK9: Tout type | CL9: Tout type | CM9: Tout type | CN9: Tout type | CO9: Tout type | CP9: Tout type
A10: 4 | B10: Fabricant | C10: ? | D10: Etat Canadien | E10: Etat Canadien | F10: Etat Canadien | G10: Etat Canadien | H10: ? | I10: ? | J10: ? | K10: ? | L10: Netherland | M10: Netherland | N10: Netherland | O10: Bensonwood | P10: Bensonwood | Q10: ? | R10: ? | S10: Legrand | T10: ? | U10: Non spécifié | V10: Universidad Politécnica de Cartagena | W10: ? | X10: ? | Y10: spaciotempo | Z10: ErgoWall | AA10: Galco (France Métal) | AB10: Dispano | AC10: ABCD International | AD10: ? | AE10: ? | AF10: Losberger | AG10: Malerba | AH10: Bensonwood | AI10: Gipen | AJ10: ? | AK10: ? | AL10: Alexis Rochas | AM10: ? | AN10: ? | AO10: Thermasteel | AP10: ? | AQ10: Hunter Douglas | AR10: W-all Ventures | AS10: Arotcharen | AT10: Alsacork | AU10: Metaklett | AV10: ? | AW10: ? | AX10: Quicon | AY10: Emilio Perez Piñero | AZ10: Omega Structures | BA10: Uniboite | BB10: Uniform | BC10: Piveteau | BD10: Carbone + | BE10: Piveteau | BF10: ? | BG10: ? | BH10: Piveteau | BI10: Fixtoo | BJ10: Lamello | BK10: Velcro | BL10: Krinner | BM10: ? | BN10: Legrand | BO10: Avenue du bois | BP10: Technopieux | BQ10: Luxtend | BR10: Knauf | BS10: Piveteau | BT10: Piveteau | BU10: ? | BV10: Felipe zanardi | BW10: Non spécifié | BX10: ? | BY10: Piveteau | BZ10: Gerflor | CA10: ? | CB10: Placo | CC10: ? | CD10: / | CE10: ? | CF10: Piveteau | CG10: Kyushu University | CH10: Agriboard | CI10: Grad | CJ10: ? | CK10: PEIKKO | CM10: KNAPP | CN10: HALFEN | CO10: Laude | CP10: ISOVER
A11: 5 | B11: Matériaux | C11: Divers | D11: Divers | E11: Divers | F11: Divers | G11: Divers | H11: Divers | I11: Divers | J11: Divers | K11: PVC | L11: Béton, Métal | M11: Béton, Métal | N11: Béton, Métal | O11: Bois, Divers | P11: Bois, Divers | Q11: Divers | R11: Divers | S11: Divers | T11: Métal | U11: Bois | V11: Métal | W11: Métal | X11: Métal | Y11: Métal | Z11: Divers | AA11: Métal | AB11: Métal | AC11: Vitrage, aluminium, bois, plâtre | AD11: Divers | AE11: Bois | AF11: Divers | AG11: Vitrage, aluminium, bois, PVC | AH11: Bois | AI11: Bois | AJ11: Métal | AK11: Métal | AL11: Métal / résine plastique | AM11: Métal | AN11: PVC | AO11: Bois | AP11: Métal | AQ11: Bois | AR11: Divers | AS11: Divers | AT11: liège naturel | AU11: Métal | AV11: Bandes adhésives | AW11: Métal | AX11: Métal | AY11: Métal | AZ11: Polycarbonate | BA11: PVC | BB11: Bois, Métal | BC11: Métal | BD11: non précisé | BE11: Métal | BF11: Métal | BG11: Métal | BH11: bois | BI11: Métal | BJ11: Divers | BK11: Velcro | BL11: Métal | BM11: Métal | BN11: PVC | BO11: Métal | BP11: Métal | BQ11: Divers | BR11: Plâtre | BS11: bois | BT11: bois | BU11: PVC | BV11: Velcro | BW11: Béton, asphalte | BX11: Métal | BY11: Métal | BZ11: PVC | CA11: Métal | CB11: Métal | CC11: Caoutchouc | CD11: Béton | CE11: Béton | CF11: bois | CG11: Béton | CH11: Bois | CI11: plastic | CJ11: Béton, métal | CK11: Métal | CL11: Métal, béton | CM11: Métal | CN11: Métal | CO11: Métal | CP11: Métal, laine minérale
A12: 6 | B12: Disponibilité Pays | C12: Inconnue | D12: France | E12: France | F12: France | G12: France | H12: Inconnue | I12: Inconnue | J12: Inconnue | K12: Inconnue | L12: Pays-Bas | M12: Pays-Bas | N12: Pays-Bas | O12: USA, UK, Japon, Canada | P12: USA, UK, Japon, Canada | Q12: France | R12: Inconnue | S12: France | T12: Inconnue | U12: France | V12: Espagne | W12: Inconnue | X12: Inconnue | Y12: France | Z12: Belgique | AA12: France | AB12: France | AC12: France | AD12: USA | AE12: Inconnue | AF12: France | AG12: France | AH12: USA, UK, Japon, Canada | AI12: France | AJ12: USA | AK12: USA | AL12: USA | AM12: France | AN12: Inconnue | AO12: USA | AP12: USA | AQ12: France | AR12: France | AS12: France | AT12: France | AU12: Allemagne | AV12: France | AW12: UK | AX12: UK | AY12: Inconnue | AZ12: France | BA12: France | BB12: France | BC12: France | BD12: France | BE12: France | BF12: France | BG12: France | BH12: France | BI12: France | BJ12: France | BK12: France | BL12: France | BM12: France | BN12: France | BO12: France | BP12: France | BQ12: Belgique | BR12: France | BS12: France | BT12: France | BU12: France | BV12: Japon | BW12: France | BX12: France | BY12: France | BZ12: France | CA12: Inconnue | CB12: France | CC12: USA | CD12: USA | CE12: France | CF12: France | CG12: Japon | CH12: USA | CI12: France | CJ12: France | CK12: Monde | CM12: Monde | CN12: Monde | CO12: France | CP12: France
A13: 7 | B13: Stade d'évolution | C13: Diffusion limitée | D13: Recherche et Développement | E13: Recherche et Développement | F13: Recherche et Développement | G13: Recherche et Développement | H13: Diffusion limitée | I13: Diffusion limitée | J13: Diffusion limitée | K13: Diffusion limitée | L13: Diffusion limitée | M13: Diffusion limitée | N13: Diffusion limitée | O13: Diffusion limitée | P13: Diffusion limitée | Q13: Très diffusé | R13: Très diffusé | S13: Très diffusé | T13: Diffusion limitée | U13: Très diffusé | V13: Diffusion limitée | W13: Diffusion limitée | X13: Diffusion limitée | Y13: Très diffusé | Z13: Très diffusé | AA13: Très diffusé | AB13: Diffusion limitée | AC13: Très diffusé | AD13: Diffusion limitée | AE13: Très diffusé | AF13: Très diffusé | AG13: Très diffusé | AH13: Diffusion limitée | AI13: Très diffusé | AJ13: Diffusion limitée | AK13: Diffusion limitée | AL13: Recherche et Développement | AM13: Très diffusé | AN13: Recherche et Développement | AO13: Diffusion limitée | AP13: Diffusion limitée | AQ13: Très diffusé | AR13: Diffusion limitée | AS13: Diffusion limitée | AT13: Très diffusé | AU13: Diffusion limitée | AV13: Diffusion limitée | AW13: Diffusion limitée | AX13: Diffusion limitée | AY13: Recherche et Développement | AZ13: Très diffusé | BA13: Diffusion limitée | BB13: Très diffusé | BC13: Très diffusé | BD13: Très diffusé | BE13: Très diffusé | BF13: Diffusion limitée | BG13: Très diffusé | BH13: Très diffusé | BI13: Très diffusé | BJ13: Diffusion limitée | BK13: Très diffusé | BL13: Diffusion limitée | BM13: Très diffusé | BN13: Très diffusé | BO13: Très diffusé | BP13: Très diffusé | BQ13: Très diffusé | BR13: Très diffusé | BS13: Très diffusé | BT13: Très diffusé | BU13: Diffusion limitée | BV13: Diffusion limitée | BW13: Très diffusé | BX13: Diffusion limitée | BY13: Très diffusé | BZ13: Très diffusé | CA13: Très diffusé | CB13: Très diffusé | CC13: Recherche et Développement | CD13: Diffusion limitée | CE13: Diffusion limitée | CF13: Très diffusé | CG13: Recherche et Développement | CH13: Marché | CI13: Marché | CJ13: Développement | CK13: Marché | CL13: Développement | CM13: Marché | CN13: Marché | CO13: Marché | CP13: Marché
A14: 8 | B14: En quoi est-ce démontable ? | C14: Fixation mécanique par tige filetée | D14: Assemblage par fixation mécanique | E14: Assemblage par fixation mécanique | F14: Assemblage par fixation mécanique | G14: Assemblage par fixation mécanique, boulonnage | H14: Assemblage par fixation mécanique | I14: Le retrait de la languette métallique permet de séparer les éléments | J14: Voir le descriptif ci-dessous | K14: Les prises électriques sont placés dans un rail métallique et ainsi désolidarisées du mur | L14: Séparation des dalles de plancher + fixation par boulonnage | M14: Les dalles peuvent être démontées simplement en enlevant le poteau supérieur | N14: Fixation mécanique du poteau inférieur au poteau supérieur via les éléments de planchers | O14: Conçu pour faciliter la démontabilité des éléments constitutifs | P14: Conçu pour faciliter la démontabilité | Q14: Principe de construction favorisant la déconstruction | R14: La séparation des éléments dans un plancher autorise leur démontabilité | S14: cadre amovible et des flancs démontables individuellement | T14: Fixation par glissement autour d'un élément fixe | U14: Assemblage minimisant le recours au métal | V14: démontabilité comme propriété intrinsèque, fixations mécaniques par tiges filetées et boulons | W14: Éléments mécaniques emboitables | X14: Éléments mécaniques emboitables et boulonnables | Y14: La jonction est réalisée par une barre métallique démontable | Z14: Conçu pour une démontabilité facilitée | AA14: Elément d'assemblage en filière sèche dévissable | AB14: Les panneaux de verre sont clipsés l’un à l’autre grâce à des profilés de raccords minces et transparents | AC14: démontabilité comme propriété intrinsèque | AD14: Fixation sur rails incorporés dans le plancher | AE14: Pas de joint ciment ni collage - Fixation mécanique | AF14: Groupe désolidarisé du bâtiment avec accès par l'extérieur | AG14: Fixation par verrou simple en partie basse | AH14: Conçu pour faciliter la démontabilité | AI14: La jonction est réalisée par des platines démontables | AJ14: Conçu pour faciliter la démontabilité | AK14: Conçu pour faciliter la démontabilité | AL14: Démontable à volonté - Eléments fixés entre eux mécaniquement | AM14: Fixation mécanique en filière sèche | AN14: Le support est fixé par vis au mur et la plainte est simplement démontable, autorisant une intervention simple sur les câbles | AO14: Conçu pour favoriser la démontabilité | AP14: Conçu pour faciliter la démontabilité | AQ14: Fixation par clips | AR14: Fixation par aimants fixés sur rails | AS14: les dalles de bois sont assemblés à des câbles de maintien suspendus au plafond par des crochets | AT14: Fixation par vissage sans colle du support et intégration simple de la plinthe | AU14: Permet de désassembler par simple séparation des deux éléments de fixation | AV14: Capacité adhésive adpatée à l'utilisation | AW14: Les poutres disposent d'une platine venant se reposer sur une tige métallique - Même action possible lors de l'action du démontage | AX14: Les poutres Métal sont glissés sur tiges boulonnées et reposent sur une platine adaptée avec trous oblongs - Même action possible lors de l'action du démontage | AY14: Permet de réaliser un assemblage triangulaire à l'aide d'un système tige filetée écrou | AZ14: Utilisé dans le cadre de constructions temporaires démontables | BA14: Facilite la démontabilité et le remplacement des câbles emprisonnés dans le béton | BB14: Système innovant d'accroche des lames de bois permettant la démontabilité | BC14: Permet de ne pas altérer les lames de bardages, restant facilement démontables | BD14: Chaussette isolante adaptée à l'élément à isoler- Fixation par sangles et velcro, réutilisable sur l'élément après chaque entretien | BE14: Fixation sans colle | BF14: Les clips permettent de démonter facilement les panneaux de bois | BG14: La deuxième tête fait office de levier pour démontage | BH14: Ne nécessite aucun mode de fixation - Pas de désassemblage de chaque composant | BI14: Facilite démontabilité | BJ14: Fixation par électro-aimant réversible | BK14: Démontage par traction sur chaque élément | BL14: Démontable par dévissage - Permet de laisser le terrain en état initial après déconstruction | BM14: Les planches de bois sont empilées les unes sur les autres sans éléments de jonction | BN14: S'enroulent et se déroulent facilement autour du câble | BO14: Le poteau est fixé par vis - La modification de la hauteur d'emprise peut faciliter le démontage sur site | BP14: Peut être dévissé | BQ14: Fixation par chauffage modifiable à volonté | BR14: Disposé sans fixation sur profilés métallique de faux plafond | BS14: Fixation par vis | BT14: Dépose au sol sans fixation spécifique | BU14: Tuyaux flexibles et éléments d'assemblage mécaniques (dévissables) | BV14: Fixation par velcro | BW14: Assemblage par joints secs | BX14: Démontage par chauffage de l'assemblage | BY14: Fixation mécanique par vis | BZ14: Pose facile sans colle sans éléments de fixation | CA14: Assemblage par élément indépendant facilitant la démontabilité de chaque éléments | CB14: Fixation par dépose sans fixation spécifique | CC14: Conçu pour faciliter la démontabilité | CD14: Fixation par poids propre - type "Lego" | CE14: Ces éléments peuvent être enlevés du sol par soulèvement | CF14: Fixation par clips | CG14: Pas de joints. Assemblages mécanique | CH14: Eléments d'assemblage mécanique plancher / mur | CI14: Le clips permet le montage et le démontage des lames de terrasse ou de bardage | CJ14: Le système de clavetage particulier peut être démoli, libérant ainsi les dalles bétons préfabriquées des profilé métalliques de structure du plancher | CK14: Assemblage d'éléments préfabriqués béton par platinnes métalliques et boulonnage. | CL14: Pas de clavetage. Assemblage mécanique dévissable entre les dalles de planchers et les profilés métalliques support | CM14: Connecteurs à assemblage sec par emboitement | CN14: Platines métalliques de fixation de profilés et panneaux en façade. Fixation par boulonnage | CO14: Cassettes métalliques fixées par emboitement et démontables indépendament les unes des autres | CP14: Les éléments sont assemblés mécaniquement
A15: 9 | B15: Descriptif | C15: La tige filetée a une durée de vie importante et permet de ne pas mettre en péril la structure assemblée en nécessitant un remplacement de l'élément assembleur. | D15: Voir schéma : Structure de plancher en dalles béton précontraintes sur profilés métalliques, plancher bois sur plots, cloisons démontables, réseaux passés entre le revêtement sur plot et la structure du plancher. | E15: Voir schéma : Plancher en dalle béton sur bac métallique nervuré, posé sur structure métallique en profilés à âme évidée, faux plafond sous suspentes, passage des réseaux en faux plafond. | F15: Voir schéma : Détail De section intérieure avec plancher en béton pré contraint fixé sur profilé métallique, panneaux de façade préfabriqués Trappe d'accès à l'élément d'assemblage plancher / panneau de façade supérieur. | G15: Voir schéma : Détail de section extérieure en structure métallique avec mur rideau vitré en revêtement extérieur. | H15: Les détails ci-dessous présentent la différence entre une configuration d'assemblage n'autorisant pas le démontage d'un vitrage (en haut à gauche) et une proposition de modification le permettant. Une modification de la géométrie de la jonction supérieure du vitrage a été adaptée en ne présentant qu'une butée en lieu et place d'une accroche par frottement a l'élément support en contact supérieur. La géométrie de ce dernier est également adaptée à cette nouvelle configuration. | I15: L'illustration ci-contre décrit les différentes étapes du démontage des éléments. C'est un schéma de principe à adapter au cas étudié. | J15: Les aspects ayant l'impact principal sur le potentiel de démontabilité de cette configuration sont les suivants : - Haut niveau d'indépendance entre les groupes assemblés ayant des fonctionnalités et des durées de vie différentes. - Utilisation de connexions démontables entre les groupes assemblés : support, mur de séparation, électricité et porte - Utilisation d'intermédiaires entre le mur de séparation et les installations électriques, ainsi qu'entre le mur de séparation et le plancher - Utilisation de pièces avec des fonctionnalités d'auto-verrouillage intégrés | K15: Ce type de rail peut se mettre en place dans différentes configurations, verticalement ou horizontalement. Ils permettent une maintenance et un remplacement des prises et du réseau électrique aisé. | L15: Un élément métallique divise l'appui du plancher en 4 parties égales. Les dalles de plancher sont insérées dans chacune des cavités puis fixés par des vis sur les poteaux hauts et bas. | M15: Les dalles de plancher conçues à cet effet sont insérées dans des barrettes métalliques ancrées dans les poteaux. Les dalles sont fixées entres les poteaux hauts et bas. Les éléments de fixation on une longueur égale à la moitié de l'épaisseur des dalles. | N15: Les dalles de plancher sont fixées entre elles par des tiges filetées les traversant de par en par et venant se fixer sur des plaquettes métalliques incorporées dans les poteaux supérieurs et inférieurs. | O15: Ce mur est conçu pour préserver l'indépendance entre les différents éléments le composant. On peut ainsi démonter indépendamment chaque élément et les modifier sans engager la pérennité de l'élément structurel. | P15: Ce plancher est conçu pour préserver l'indépendance entre les différents éléments le composant. On peut ainsi démonter indépendamment chaque élément et les modifier sans engager la pérennité de l'élément structurel. | Q15: Les connecteurs directs s'emboîtent ou se chevauchent avec des composants, ce qui peut rendre difficile la déconstruction en raison du processus d'assemblage général. Les connecteurs indirects sont habituellement plus faciles à déconstruire de par leur interchangeabilité et l'indépendance des composants. Les connecteurs colmatés tels que des connecteurs collés ou soudés peuvent être pratiquement impossible à déconstruire, à moins que la charge de fixation soit très douce, comme pour le mortier de chaux. | R15: Ce mode constructif peut être adapté à différents types de plancher. Les schéma ci-contre décrivent plusieurs types de configurations. Cela permet de désolidariser les différents éléments considérés, leur donnant un fort potentiel de démontabilité et permettre ainsi leur remplacement sans engager la pérennité des ouvrages structurels. | S15: Ce type d'armoire peut être déplacé en cas de modification de l'organisation des locaux techniques. La flexibilité des éléments facilite également les opérations de maintenance. | T15: Ce type de fixation permet d'envisager diverses applications concernant l'assemblage de bâtiments par groupes d'éléments. Assemblage non structurel. | U15: Par colle, clous ou vis, ce type d'assemblage permet d'éviter au maximum l'utilisation de métal dans l'acte de construire. Pas démontable si utilisation de colle. Attention également avec les pièces d'assemblage en bois qui avec le temps travaillent et rendent l'assemblage indémontable. Pour la démontabilité, assemblage bout à bout intéressant mais sans pièce de bois de liaison. | V15: Assemblage développé par l'université de Carthagène dans le cadre d'un projet destiné à l'élaboration d'un type d'assemblage facilement démontable. L'élément intermédiaire représenté en vert et orange sur le schéma ci-dessous permet de désolidariser les deux éléments structurels et ainsi de faciliter leur démontage. | W15: Possible pour bâtiments de grandes dimensions, industriel, tertiaire… Difficile pour le logement. | X15: La croix métallique en partie centrale permet de désolidariser les éléments assemblés. | Y15: Assemblage destiné aux constructions démontables métalliques. Ce système permet de minimiser le temps de manipulation par les ouvriers en hauteur. | Z15: Ce bloc WC intègre l'ensemble des éléments d'une installation sanitaire classique. Il est conçu pour être entièrement démontable. Il permet d'améliorer l'agrément intérieur tout en facilitant la démontabilité et l'adaptabilité de l'espace intérieur. | AA15: D'une grande solidité (les pièces galvanisées sont à l'abri de la rouille), ces bâtiments métalliques sont des construction facilement réalisables. Les charpentes métalliques sont adaptées à de multiples utilisations, en tant que sites de production, ateliers, locaux techniques associés à des mairies, centres de contrôle technique, etc. | AB15: Ce système comporte une rainure, façonnée sur la tranche verticale des vitrages. Grâce à des profilés de raccords minces et transparents, les panneaux de verre sont clipsés l’un à l’autre. La jonction des vitrages bord à bord est prévue pour les angles droits ou les raccords en T des cloisons de refends sur les circulations. | AC15: Il existe un nombre important de types de cloisons amovibles offrant des modes de fixations variées. Se tourner vers les fabricants pour des détails sur ces techniques. | AD15: Les blocs SIP (Structural Insulated Panels) simplifient la connexion et l'assemblage entre le mur vertical et et le toit. Il combine le revêtement de toit, l'isolation et éventuellement la finition de plafond en un seul composant. L'intérêt du design de cet élément est qu'il peut être facilement démonté et utilisé comme un élément complet pour un autre bâtiment. La combinaison de différentes fonctionnalités comme élément structurel, isolant et revêtements intérieurs et extérieurs permet d'envisager une utilisation variée non destiné à être directement envoyé en décharge après l'utilisation. Cette configuration a cependant l'inconvénient de présenter des difficultés de recyclage compte-tenu de cette combinaison d'éléments hétérogènes. | AE15: Les éléments structurels sont empilés les uns sur les autres, avec ou sans éléments de jonction. | AF15: Ce groupe chauffage autonome présente l'avantage d'être désolidarisé du bâtiment. La facilité de maintenance, et le manque d'encombrement intérieur en sont les principaux atouts. A noter cependant que ce type d'installation occasionne des pertes importantes dues à l'écart de température entre l'air chauffé et l'environnement extérieur. Il est destiné à une utilisation sur des bâtiments permanents et est entièrement démontable. | AG15: Ce système d'imposte est simple à monter et s'adapte à différents types de menuiseries. L'imposte est fixée par un verrou simple en partie basse la calant dans la rainure en partie supérieure. | AH15: Le mode d'assemblage mécanique et simple est intéressant, cependant l'expérience montre qu'avec le temps les structures bois ont tendance à se déformer légèrement et à bloquer les éléments d'assemblage. Une tige de liaison métallique dévissable serait plus pertinente en vu d'une meilleur démontabilité à long terme. | AI15: Le type de jonction présenté dans les illustrations ci-jointes n'est qu'un exemple parmi d'autres des jonctions planchers / murs verticaux réalisées par platines démontables. | AJ15: La finition extérieure est similaire à une finition traditionnelle afin de garantir l'étanchéité à l'eau. La partie intérieure est garnie avec un chambranle de bois pouvant être facilement enlevé, ce qui permet à la fenêtre d'être retirée de l'intérieur. | AK15: Une languette en aluminium est placé en extérieur. Elle permet une connexion étanche à l'eau entre la vitre et le revêtement, et permet à la fenêtre d'être facilement démontée. | AL15: La structure de OCTA.BOT est composée de raccords universels abritant huit rotules permettant à chaque entretoise de tourner librement autour d'un point de travail commun. Le joint à rotule permet une adaptation de la structure aux mouvements. La combinaison de longueurs d'entretoises détermine automatiquement les angles complexes de l'ensemble et rend une liaison rigide autobloquante. Tous les raccords de OCTA.BOT sont réutilisables, permettant à la structure un démantèlement et une reconfiguration aisée. | AM15: - Les panneaux de plancher sont creux pour permettre le passage des réseaux techniques, et ainsi faciliter leur démontage - Elément monobloc reposant sur des profilés en périphérie et fixation mécanique en filière sèche - Démontabilité du plancher et des éléments le traversant facilitée | AN15: Différentes configurations sont possibles et peuvent s'appliquer à différents types de réseaux pour des utilisations variées (réseau électrique, fibre optique, chemin de câble pour utilisations spécifique comme les studios de musique,…). | AO15: Le système Thermasteel est composé de panneaux indépendants. Ces derniers intègrent un isolant rigide lié à une section en Métal légère par fixation sous haute chaleur et pression. Aucun adhésif n'est utilisé dans les composants ou les assemblages. Toutes les liaisons sont réalisées par des vis auto-taraudeuses. Comme toutes les connexions utilisées pour assembler le système Thermasteel sont simples et " sèches ", le système se prête très facilement au démontage. Un deuxième avantage de ce système est sa résistance à la moisissure. | AP15: Ce type d'assemblage permet de limiter le nombre de vis utilisées au sein de l'assemblage. La consommation de matière est ainsi réduite et permet de réduire le temps nécessaire au démontage de l'assemblage. | AQ15: Ce système est constitué de panneaux à base de lames de bois massif liées les unes aux autres par des tourillons aluminium. L'utilisation d'un système d'assemblage mâle/femelle des tourillons garantit un bon alignement des panneaux. Les panneaux démontables sont fixés à des porteurs en métal au moyen d'un clip. | AR15: Ce système autorise une modification des revêtements muraux au gré des envies des occupants. Reste pour l'instant à un prix élevé et donc difficilement accessible à un large public. | AS15: Ce type de faux plafond a été utilisé dans le projet du siège social de Quicksilver conçu par l'architecte Patrick Arotcharen. La particularité de ce système et l'accroche par simples crochets à l'élément support. Cela facilite les opérations de maintenance et l'accès aux gaines techniques. | AT15: Fourni avec l'attache en plastique, à visser sur le mur. La plinthe s'insère toute seule dans l'attache, et permet le passage de réseaux électriques. | AU15: Cette technologie résiste à des températures jusqu'à 800 °C et permet de soutenir des charges jusqu'à 35 tonnes/m² si les charges sont appliquées parallèlement au système d'accroche. Son application est aujourd'hui limitée à l'industrie et à l'automobile. Ses propriétés intrinsèques permettent toutefois d'envisager raisonnablement des applications à grande échelle dans le domaine de la construction. | AV15: L'adhésif doit être choisie méticuleusement pour que l'intensité du collage permette à la fois de fixer correctement les panneaux de bois, tout en autorisant leur décollage sans trop de difficultés. | AW15: Assemblage simplifié. Nécessite une platine adaptée prévue en usine. Adapté à des planchers fins et légers. | AX15: Quicon system. Il existe également les systèmes MXB-5, Moducon-2000 et SMT systems (aucunes informations supplémentaires n'ont été trouvées). | AY15: Est adapté à une typologie particulière d'assemblage nécessitant une fixation triangulaire. | AZ15: Ce type de revêtement de toit est largement utilisé dans des constructions éphémères démontables. | BA15: Permet un accès aux fourreaux de câbles emprisonnés dans une dalle béton. Evite les déchets liés à l'utilisation de matière (souvent PSE) comme coffrage perdu. | BB15: Les lames en bois sont montées sur des montants aluminium. Un système à vis breveté permet un démontage aisé des lames de bois. Les montants en aluminium sont également démontables (fixation mécanique par vis). | BC15: Nécessite des lames de bardage adaptées. | BD15: - Absence de pont thermique - Confection sur mesure - Légèreté et tenue en forme - Longévité - Montage et démontage faciles - Amélioration des conditions de travail - Ininflammabilité - Pas de dégagement de fumées toxiques lors d'incendies | BE15: Il existe plusieurs types de clips adaptés à différents revêtements de sol. Ce type de système est en application sur des planchers bois, lambris ou sols en PVC. | BF15: Ce type de clips permet une fixation des panneaux de bois sans altérer le mur support. | BG15: Les clous à "deux têtes" présentent l'avantage de faciliter le démontage des éléments fixés. Ils présentent la même résistance que les clous normaux et ne remettent donc pas en questions la solidité de l'assemblage concerné. Les clous sont enfoncés jusqu'à la première tête, laissant ainsi la seconde en surface. Il suffit ensuite d'utiliser la mâchoire de l'extrémité opposée d'un marteau pour les enlever. Ils doivent cependant être utilisés pour des assemblages masqués ou difficilement accessibles, pour éviter les risques de blessures ou de déchirement de vêtements. | BH15: L'absence d'éléments intermédiaires de fixation au sol permet une indépendance de ces éléments, autorisant une adaptabilité des espaces extérieurs et une démontabilité aisée. | BI15: Adapté aux structures légères. Encrage manuel. | BJ15: Electro-aimant invisible et démontable : Le champ magnétique en rotation du MiniMag Mx entraîne la liaison, comme une roue dentée entraîne une autre. La tige filetée de la liaison se visse dans le boulon, sans contact direct et uniquement actionnée par le champ magnétique. Utilisation avec visseuse sans fil : Le mécanisme d’entrainement magnétique MiniMag Mx s’adapte sur toutes les visseuses sans fil ayant une rotation de 1200 – 1500 min-1 Démontable à l’infini : Pour dévisser la liaison, il suffit de changer le sens de rotation de la visseuse. | BK15: Multiples applications envisageables (revêtements intérieurs murs et sols, éléments de second œuvre (main courante escalier, prise électriques, supports luminaires,…)). Ses qualités hygrophobes permettent également des utilisations en contact avec le milieu extérieur (terrasses, revêtement de toit, montants de menuiseries,...). Le système permet également de garantir une légère ventilation au niveau de l'assemblage, limitant ainsi l'apparition de moisissures. Cet avantage et également un inconvénient et proscrit son usage pour des assemblages traversants l'enveloppe du bâtiment. | BL15: Pieux conçus pour des structures légères : abris jardins, panneaux solaires, panneaux publicitaires,… Ils peuvent également être utilisés pour des constructions bois sur des bâtiments avec un nombre limité d'étages et sur des sols propices. | BM15: Ces rails permettent une mise en place et un démontage rapide du revêtement intérieur. Les planches de bois étant séparés une intervention manuelle sans matériel lourd et possible. Ce type d'assemblage présente un avantage pratique certain mais un travail et nécessaire quand à son intégration esthétique. | BN15: Manchons permettant de repérer les câbles. Généralement fait avec du ruban adhésif. Le ruban adhésif est moins facilement démontable et non réutilisable. | BO15: Permet de fixer les pied de poteau sur des pas de vis. Cela autorise une adaptation de la hauteur de poteau, notamment en cas de défaut de fabrication. Il permet également de faciliter le démontage en éloignant l'élément fixé de l'assemblage supérieur. Cela apporte dans un même temps un aspect esthétique en ne faisant pas apparaître la zone de fixation sur les parties périphériques du profilé bois. | BP15: Le pieu vissé de marque « Techno Pieux » se présente comme une grande vis mise en œuvre dans le sol par une machine spécialisée, jusqu’à atteindre la capacité portante voulue. Dévissable, les Techno Pieux permettent de laisser le terrain en état initial après déconstruction. | BQ15: Ce type de plafond étirable offre de larges opportunités d'intégration dans l'espace intérieur. Les montages et démontages doivent être réalisés par un professionnel qualifié en possession du matériel nécessaire. | BR15: Système largement diffusé se retrouvant dans un grand nombre de bâtiments de bureaux. | BS15: Permet de fixer une terrasse en laissant un écoulement d'air en sous face permettant une ventilation du vide sanitaire. | BT15: Permet de fixer une terrasse en laissant un écoulement d'air en sous face permettant une ventilation du vide sanitaire. | BU15: Ce type de canalisation est déjà largement diffusé et présente de multiples avantages, notamment un coût faible comparé à de la tuyauterie métallique. | BV15: L'espace peut être adapté grâce à ce revêtement de sol partagé en modules dont l'organisation est adaptable à volonté grâce à un système de fixation par velcro. La fixation au sol se fait par simple dépose du bloc, sans éléments de fixation supplémentaire. | BW15: Chaussée urbaine "démontable" constituée d'alvéoles en béton pouvant être enlevées pour faciliter les interventions sur les réseaux souterrains. | BX15: L'ensemble est constitué d'une vis filetée et d'un anneau métallique thermo-réactif. L'assemblage est réalisé pour que la vis soit un tout petit peu plus étroite que le trou la recevant. L'anneau métallique est placé entre la tête de la vis et le trou de l'assemblage, comblant ainsi l'espace séparant les deux éléments. Lorsque l'on chauffe l'ensemble l'anneau métallique se dilate et libère la vis, pouvant ainsi passer à travers le trou et permettant de séparer facilement les deux éléments assemblés. | BY15: Démontable mais le nombre de vis peut limiter le potentiel de démontage de l'élément. | BZ15: Ce sol PVC absorbe les irrégularités et peut donc se poser sur tout type de sol y compris un ancien carrelage.Adapté à la rénovation. Pose facile sans colle (jusqu'à 25m²). | CA15: Cette configuration permet un assemblage et un démontage simple des éléments constitutifs. Il permet d'envisager fortement une réutilisation des éléments assemblés sur d'autres bâtiments, le démontage ne détériorant pas ces éléments au niveau de leurs points d'assemblage. | CB15: Technique largement répandue dans les bâtiments tertiaires. Les rails peuvent accueillir un grand nombre de types de plaques de faux plafonds et offrent une grande flexibilité concernant les dimensions. | CC15: Au lieu de petits pavés usinés, il est possible de mettre en place des sections de pavés plus grandes pouvant être déplacés d'un seul bloc à l'aide de matériels lourds. Les joints secs sont couramment utilisés pour le revêtement de sol. Il semblerait intéressant de s'intéresser aux possibilités d'utilisation de ce type d'approche par exemple pour la construction de dalles sur terre-plein. | CD15: Modules pour murs de soutènement fixés par emboîtement des éléments en béton utilisant la gravité et les forces latérales naturels pour résister aux charges. Ce système modulaire préfabriqué est intrinsèquement flexible et s'adapte à une grande variété de contraintes propres au site de construction. L'absence des mortiers et des moyens de renfort supplémentaires rends les modules facilement démontables et réutilisables. | CE15: Les tiges métalliques permettent d'ancrer les plots bétons dans le sol par enfoncement (les plots sont percés de part en part). Les plots peuvent être retirés après avoir enlever ces tiges. | CF15: Lames pour terrasses autorisant la fixation par clips. | CJ15: Système de plancher mixte démontable métal béton comportant des profilés métalliques structurels et dalles de plancher béton préfabriquées. Les dalles sont liées structurellement aux profilés métalliques par clavetages pouvant être détruits pour séparation des différents éléments. | CK15: Peikko, entreprise finlandaise, propose des connexions mécaniques pour des éléments en béton préfabriqué. Le climat finlandais ne permettant pas la réalisation de connexions par coulage in situ, ils ont développé des systèmes d’assemblages métalliques rendant la construction plus rapide et efficace. Par ailleurs, cette technologie permettrait aussi le démontage. Cependant, dans les produits actuels, du ciment est généralement coulé par-dessus les connecteurs métalliques gênant partiellement le futur démontage. Les connexions de poteaux boulonnées « Bolted Column Connection » sont un des produits démontables proposés par Peikko. D’autres produits sont disponibles sur le site internet du fabricant tels que des assemblages poteaux-poutres, ou des assemblages poteaux-poteaux… L’ensemble de ces produits sont certifiés | CL15: Le projet de recherche RFCS Research project « REDUCE » propose une solution de plancher mixte démontable | CM15: Connecteurs pour façade rideau bois-verre démontable. Le connecteur RICON® s’utilise pour les assemblages poteaux-traverses des façades rideaux. Le connecteur FASCO® permet la mise en œuvre des vitrages sur les poteaux traverses. Ces connecteurs autorisent le démontage de la façade rideau. | CO15: Cassette en composite pour bardage rapporté ventilé, fixations invisibles par accrochage. Optimisé en trame vertical, sous avis technique. | CP15: Système de façade composé de rails métalliques verticaux fixés à la structure du bâtiment et d’un remplissage en matériau isolant. Façade démontable dont les composants peuvent être séparés pour être valorisés dans leurs différentes filières
A16: 10 | B16: Site source | C16: Publication | D16: Publication | E16: Publication | F16: Publication | G16: Publication | H16: Publication | I16: Publication | J16: Publication | K16: Publication | L16: Publication | M16: Publication | N16: Publication | O16: Publication | P16: Publication | Q16: Publication | R16: Publication | S16: Fabricant | T16: Publication | U16: Site spécialisé | V16: Site spécialisé | W16: Publication | X16: Publication | Y16: Fabricant | Z16: Fabricant | AA16: Fabricant | AB16: Fabricant | AC16: Fabricant | AD16: Publication | AE16: Publication | AF16: Fabricant | AG16: Fabricant | AH16: Publication | AI16: Fabricant | AJ16: Publication | AK16: Publication | AL16: Site spécialisé | AM16: Publication | AN16: Publication | AO16: Publication | AP16: Publication | AQ16: Fabricant | AR16: Site spécialisé | AS16: Site spécialisé | AT16: Fabricant | AU16: Nobatek | AV16: Publication | AW16: Publication | AX16: Publication | AY16: Publication | AZ16: Fabricant | BA16: Fabricant | BB16: Fabricant | BC16: Fabricant | BD16: Fabricant | BE16: Fabricant | BF16: Publication | BG16: Publication | BH16: Fabricant | BI16: Fabricant | BJ16: Fabricant | BL16: Fabricant | BM16: Publication | BN16: Fabricant | BO16: Revendeur | BP16: Fabricant | BQ16: Fabricant | BR16: Fabricant | BS16: Fabricant | BT16: Fabricant | BU16: Publication | BV16: Revendeur | BW16: Site spécialisé | BX16: Publication | BY16: Fabricant | BZ16: Fabricant | CA16: Publication | CB16: Fabricant | CC16: Publication | CD16: Publication | CE16: Publication | CF16: Fabricant | CG16: Kyushu University | CH16: Agriboard | CJ16: DEMODULOR | CK16: PEIKKO | CM16: KNAPP | CN16: HALFEN | CO16: LAUDE | CP16: Façade F4
A17: 11 | B17: Liens | C17: Transformable_building_structures | D17: DfD_Guide_OfficeBldgs | E17: DfD_Guide_OfficeBldgs | F17: DfD_Guide_OfficeBldgs | G17: DfD_Guide_OfficeBldgs | H17: Transformable_building_structures | I17: Transformable_building_structures | J17: Transformable_building_structures.pdf | K17: Transformable_building_structures | L17: http://books.google.fr/books?id=n-kSIU8jIaUC&pg=PA69&lpg=PA69&dq=demountable+precast+system&source=bl&ots=PdOu-rCeF9&sig=Ir35YW_ruMVsFEKcsyVbMtdMlIw&hl=fr&sa=X&ei=lJcxU8GYJbCa0QWDlICYDA&ved=0CC4Q6AEwAA#v=onepage&q=demountable%20precast%20system&f=false | M17: http://books.google.fr/books?id=n-kSIU8jIaUC&pg=PA69&lpg=PA69&dq=demountable+precast+system&source=bl&ots=PdOu-rCeF9&sig=Ir35YW_ruMVsFEKcsyVbMtdMlIw&hl=fr&sa=X&ei=lJcxU8GYJbCa0QWDlICYDA&ved=0CC4Q6AEwAA#v=onepage&q=demountable%20precast%20system&f=false | N17: http://books.google.fr/books?id=n-kSIU8jIaUC&pg=PA69&lpg=PA69&dq=demountable+precast+system&source=bl&ots=PdOu-rCeF9&sig=Ir35YW_ruMVsFEKcsyVbMtdMlIw&hl=fr&sa=X&ei=lJcxU8GYJbCa0QWDlICYDA&ved=0CC4Q6AEwAA#v=onepage&q=demountable%20precast%20system&f=false | O17: http://www.openprototype.com/projects/open1/features.html | P17: http://www.openprototype.com/projects/open1/features.html | Q17: Design for Deconstruction - SEDA Design Guide for Scotland | R17: Transformable_building_structures | S17: http://www.legrand.fr/professionnels/les-coffrets-xl3-160-isolant_371.html | T17: Transformable_building_structures | U17: http://www.bois.com/decorer/bricoleurs/assemblages-classiques/assemblages-bout-bout | V17: http://www.upct.es/~deyc/consulting.php | W17: Transformable_building_structures | X17: Transformable_building_structures | Y17: spaciotempo-cubiertas-desmontables.pdf | Z17: http://www.ergowall.com/produits.php | AA17: http://www.galco-cm.com/ | AB17: http://www.dispano.fr/bois-decoratifs/cloisons-demontables-XA190 | AC17: http://www.abcd-international.fr/fr/cloisons-demontables.html | AD17: DFD.pdf | AE17: CIB_W115_Conference_Proceedings_Pub_323 | AF17: http://www.losberger.fr/?n=223-144# | AG17: http://www.malerba.fr/be-np-177-0-portes-bois-imposte-demontable-sur-cf12h-va-et-vient | AH17: http://www.bensonwood.com/about/timeline.cfm | AI17: http://www.gipen.fr/gamme-systemes-constructifs-professionnels/produits/ossature-bois-habitat-individuel.html#.Uzu5RPl_tzo | AJ17: DFD.pdf | AK17: DFD.pdf | AL17: http://www.dexigner.com/news/19753 | AM17: http://fire.nist.gov/bfrlpubs/build02/PDF/b02153.pdf | AN17: plainte avec réseaux.pdf | AO17: http://www.thermasteelcorp.com/ | AP17: DFD.pdf | AQ17: http://www.archiexpo.fr/prod/hunter-douglas/panneaux-grillages-bois-faux-plafonds-50316-609216.html | AR17: http://blog.bmykey.com/category/immobilier/design-interieur/page/12/ | AS17: http://www.actineo.fr/reportage/quiksilver | AT17: http://www.alsacork.fr/boutique-online/mat%C3%A9riaux-annexes/plinthes | AU17: http://www.metaklett.de/technologie.html | AV17: DFD.pdf | AW17: DfD_16082010 | AX17: DfD_16082010 http://www.newsteelconstruction.com/wp/quicon-wins-contract-at-ikea/ | AY17: ETSA_16-1.pdf | AZ17: http://www.omegastructures.com/fr-FR/contenidos/65/toits.aspx | BA17: déchets-dde.pdf | BB17: http://www.uniform.it/uni-wood-brise-soleil/?lang=en | BC17: http://www.piveteaubois.com/e-Sales/esa/default.jsp?mainpage=GalleryView.jsp&utm_medium=GammeBardageBois&%40where.ParentCategoryID=btc_bardages&utm_source=Piproduits | BD17: http://www.carboneplus.be/fr/produits-d-isolation/decamat/ | BE17: http://www.piveteaubois.com/e-Sales/esa/default.jsp?mainpage=GalleryView.jsp&utm_medium=GammeBardageBois&%40where.ParentCategoryID=btc_bardages&utm_source=Piproduits | BF17: DFD.pdf | BG17: http://www.systemed.fr/forum-bricolage/clou-a-deux-tetes-t45584.html | BH17: http://www.piveteaubois.com/e-Sales/esa/default.jsp?mainpage=GalleryView.jsp&denied=yes&%40where.ParentCategoryID=b2c_Terrasses&utm_source=PIProduit&utm_campaign=LesProduitsTerrasses | BI17: http://www.fixtoo.fr/index-famille-417100-lng-fr.html | BJ17: http://www.lamello.com/fr/accueil/assemblage-du-bois/systeme-invis-mx.html | BK17: http://www.velcro.fr// | BL17: http://www.krinner.fr/ | BM17: DFD.pdf | BN17: http://www.legrand.fr/presse/les-nouveaux-manchons-cab-3-de-reperage-et-d-isolation-une-innovation-legrand_1150.html | BO17: http://www.avenue-du-bois.fr/pied-de-poteau-hauteur-101.html | BP17: http://www.technopieux.com/fr/produits/pieux-visses/ | BQ17: http://www.luxtend.fr/page-Demontable-42.html | BR17: http://www.knauf-batiment.fr/chapitre/plafonds-demontables | BS17: http://www.piveteaubois.com/e-Sales/esa/default.jsp?mainpage=GalleryView.jsp&utm_medium=GammeBardageBois&%40where.ParentCategoryID=btc_bardages&utm_source=PIproduits | BT17: http://www.piveteaubois.com/e-Sales/esa/default.jsp?mainpage=GalleryView.jsp&utm_medium=GammeBardageBois&%40where.ParentCategoryID=btc_bardages&utm_source=Piproduits | BU17: Plumbing Systems.pdf | BV17: http://www.fubiz.net/2010/04/01/land-peel-furniture/ | BW17: http://www.lemoniteur.fr/131-etat-et-collectivites/article/actualite/523298-une-rue-en-kit-pour-faciliter-les-travaux-en-sous-sol | BX17: Barkkume_Disassembly_and_DfD | BY17: http://www.piveteaubois.com/e-Sales/esa/default.jsp?mainpage=GalleryView.jsp&utm_medium=GammeBardageBois&%40where.ParentCategoryID=btc_bardages&utm_source=Piproduits | BZ17: http://www.leroymerlin.fr/v3/p/produits/sol-pvc-aerotex-timeless-chene-gris-tarkett-4-m-e159189 | CA17: 32 DEVELOPMENT OF INDUSTRIALIZED, FLEXIBLE AND DEMOUNTABLE MULTI-FAMILY BUILDING IFD COLLECTIVE HOUSING | CB17: www.placo.fr/content/download/122585/1534247/file/A03.001a.pdf‎ | CC17: DFD.pdf | CD17: Design_for_Disassembly-guide | CE17: Design_for_Disassembly-guide | CF17: http://www.piveteaubois.com/e-Sales/esa/default.jsp?mainpage=GalleryView.jsp&denied=yes&%40where.ParentCategoryID=b2c_Terrasses&utm_source=PIProduit&utm_campaign=LesProduitsTerrasses | CI17: http://www.architecturebois.fr/1er-clip-demontable-pour-lames-de-terrasses-et-de-bardage/ | CJ17: https://mecd.fr/demodulor/ | CK17: https://www.peikko.com/products/bolted-column-connections/overview/ | CL17: https://www.steel-sci.com/assets/downloads/steel-reuse-event-8th-october-2019/9_overview_of_reduce_project.pdf | CM17: https://www.knapp-verbinder.com/fr/produits/facades-rideau-bois-verre/ | CN17: https://www.halfen.com/fr/778/gamme-de-produit/construction/systemes-de-fixation/hcw-systeme-pour-mur-rideau/apercu/ | CO17: http://www.laude.fr/nos-metiers/facade/cassette-longitude | CP17: https://www.facadef4.fr/
A18: 12 | B18: Images | AG18: *
A19: 13 | B19: N° | C19: =COLUMN()-2 -> 1 | D19: 2 | E19: 3 | F19: 4 | G19: 5 | H19: 6 | I19: 7 | J19: 8 | K19: 9 | L19: 10 | M19: 11 | N19: 12 | O19: 13 | P19: 14 | Q19: 15 | R19: 16 | S19: 17 | T19: 18 | U19: 19 | V19: 20 | W19: 21 | X19: 22 | Y19: 23 | Z19: 24 | AA19: 25 | AB19: 26 | AC19: 27 | AD19: 28 | AE19: 29 | AF19: =COLUMN()-2 -> 30 | AG19: 31 | AH19: 32 | AI19: 33 | AJ19: 34 | AK19: 35 | AL19: 36 | AM19: 37 | AN19: 38 | AO19: 39 | AP19: 40 | AQ19: 41 | AR19: 42 | AS19: 43 | AT19: 44 | AU19: 45 | AV19: 46 | AW19: 47 | AX19: 48 | AY19: 49 | AZ19: 50 | BA19: 51 | BB19: 52 | BC19: =COLUMN()-2 -> 53 | BD19: 54 | BE19: 55 | BF19: 56 | BG19: 57 | BH19: 58 | BI19: 59 | BJ19: 60 | BK19: 61 | BL19: 62 | BM19: 63 | BN19: 64 | BO19: 65 | BP19: 66 | BQ19: 67 | BR19: 68 | BS19: 69 | BT19: =COLUMN()-2 -> 70 | BU19: 71 | BV19: 72 | BW19: 73 | BX19: 74 | BY19: 75 | BZ19: 76 | CA19: 77 | CB19: 78 | CC19: 79 | CD19: 80 | CE19: 81 | CF19: 82 | CG19: 112 | CH19: 113 | CI19: 114 | CJ19: 115 | CK19: 116 | CL19: 117 | CM19: 118 | CN19: 119 | CO19: 120 | CP19: 121
C20: 3 | D20: 4 | E20: 5 | F20: 6 | G20: 7 | H20: 8 | I20: 9 | J20: 10 | K20: 11 | L20: 12 | M20: 13 | N20: 14 | O20: 15 | P20: 16 | Q20: 17 | R20: 18 | S20: 19 | T20: 21 | U20: 22 | V20: 23 | W20: 24 | X20: 25 | Y20: 26 | Z20: 27 | AA20: 28 | AB20: 30 | AC20: 31 | AD20: 32 | AE20: 33 | AF20: 35 | AG20: 36 | AH20: 38 | AI20: 39 | AJ20: 40 | AK20: 41 | AL20: 42 | AM20: 43 | AN20: 45 | AO20: 47 | AP20: 48 | AQ20: 49 | AR20: 50 | AS20: 51 | AT20: 52 | AU20: 53 | AV20: 54 | AW20: 55 | AX20: 56 | AY20: 57 | AZ20: 59 | BA20: 60 | BB20: 61 | BC20: 62 | BD20: 63 | BE20: 64 | BF20: 65 | BG20: 66 | BH20: 68 | BI20: 70 | BJ20: 72 | BK20: 73 | BL20: 74 | BM20: 75 | BN20: 76 | BO20: 81 | BP20: 82 | BQ20: 83 | BR20: 84 | BS20: 85 | BT20: 86 | BU20: 87 | BV20: 88 | BW20: 91 | BX20: 92 | BY20: 93 | BZ20: 94 | CA20: 95 | CB20: 96 | CC20: 97 | CD20: 98 | CE20: 99 | CF20: 100 | CG20: 101 | CH20: 102 | CI20: 103 | CJ20: 104 | CK20: 105 | CL20: 106 | CM20: 107 | CN20: 108 | CO20: 109 | CP20: 110

Sheet stats
C3: Site source | D3: Fabricant | E3: =COUNTIF(listesource,D3) -> 31 | F3: =E3/$E$11 -> 0.3827160494 | G3: Stade d'évolution | H3: Recherche et Développement | I3: =COUNTIF(listediffusion,H3) -> 8 | J3: Classe produit | K3: Accessibilité | L3: =COUNTIF(listeclasse,K3) -> 0 | M3: =L3/$L$27 -> 0 | N3: Type de solution | O3: Elément | P3: =COUNTIF(listesolution,O3) -> 38 | Q3: =P3/$P$8 -> 0.4634146341 | R3: Typologie de bâtiments visés | S3: Tout type | T3: =COUNTIF(listetypebat,S3) -> 67 | V3: Matériaux | W3: Métal | X3: =COUNTIF(listemateriau,W3) -> 28 | Y3: =X3/$X$28 -> 0.3414634146 | Z3: Disponibilité | AA3: France | AB3: =COUNTIF(listepays,AA3) -> 48 | AC3: =AB3/$AB$16 -> 0.5853658537 | AD3: Allemagne
D4: Publication | E4: 41 | F4: 0.5061728395 | H4: Diffusion limitée | I4: =COUNTIF(listediffusion,H4) -> 36 | K4: Accessoire | L4: 2 | M4: 0.0243902439 | O4: Complexe | P4: =COUNTIF(listesolution,O4) -> 28 | Q4: =P4/$P$8 -> 0.3414634146 | S4: Industriel | T4: =COUNTIF(listetypebat,S4) -> 6 | W4: Divers | X4: 18 | Y4: 0.2195121951 | AA4: Inconnue | AB4: 13 | AC4: 0.1585365854 | AD4: Belgique
D5: Site spécialisé | E5: 6 | F5: 0.07407407407 | H5: Très diffusé | I5: =COUNTIF(listediffusion,H5) -> 38 | K5: Assemblage | L5: 33 | M5: 0.4024390244 | O5: Système constructif | P5: =COUNTIF(listesolution,O5) -> 14 | Q5: =P5/$P$8 -> 0.1707317073 | S5: Structures légères | T5: =COUNTIF(listetypebat,S5) -> 2 | W5: Bois | X5: 10 | Y5: 0.1219512195 | AA5: USA | AB5: 8 | AC5: 0.09756097561 | AD5: Espagne
D6: Revendeur | E6: 2 | F6: 0.02469135802 | K6: Canalisation | L6: 2 | M6: 0.0243902439 | O6: Mode constructif | P6: =COUNTIF(listesolution,O6) -> 2 | Q6: =P6/$P$8 -> 0.0243902439 | S6: Sauf habitat individuel | T6: =COUNTIF(listetypebat,S6) -> 6 | W6: PVC | X6: 6 | Y6: 0.07317073171 | AA6: USA, UK, Japon, Canada | AB6: 3 | AC6: 0.03658536585 | AD6: France
D7: Nobatek | E7: 1 | F7: 0.01234567901 | H7: TOTAL | I7: =SUM(I3:I5) -> 82 | K7: Charpente | L7: 1 | M7: 0.01219512195 | S7: Habitat individuel | T7: =COUNTIF(listetypebat,S7) -> 1 | W7: Bois, Divers | X7: 2 | Y7: 0.0243902439 | AA7: Pays-Bas | AB7: 3 | AC7: 0.03658536585 | AD7: Inconnue
D8: Batiproduits | E8: 0 | F8: 0 | K8: Chauffage | L8: 1 | M8: 0.01219512195 | O8: TOTAL | P8: =SUM(P3:P6) -> 82 | W8: Liège naturel | X8: 1 | Y8: 0.01219512195 | AA8: Belgique | AB8: 2 | AC8: 0.0243902439 | AD8: Japon
D9: Forum | E9: 0 | F9: 0 | K9: Climatisation | L9: 0 | M9: 0 | S9: TOTAL | T9: =SUM(T3:T7) -> 82 | W9: Béton, Métal | X9: 3 | Y9: 0.03658536585 | AA9: UK | AB9: 2 | AC9: 0.0243902439 | AD9: Pays-Bas
K10: Cloisonnement intérieur | L10: 1 | M10: 0.01219512195 | W10: Velcro | X10: 2 | Y10: 0.0243902439 | AA10: Allemagne | AB10: 1 | AC10: 0.01219512195 | AD10: UK
D11: TOTAL | E11: =SUM(E3:E9) -> 81 | K11: Couverture | L11: 1 | M11: 0.01219512195 | W11: Béton | X11: 2 | Y11: 0.0243902439 | AA11: Espagne | AB11: 1 | AC11: 0.01219512195 | AD11: USA
K12: Electricité | L12: 2 | M12: 0.0243902439 | W12: Bois, Métal | X12: 1 | Y12: 0.01219512195 | AA12: Japon | AB12: 1 | AC12: 0.01219512195 | AD12: USA, UK, Japan, Canada
K13: Fondation | L13: 4 | M13: 0.0487804878 | W13: Polycarbonate | X13: 1 | Y13: 0.01219512195
K14: Isolation intérieure | L14: 0 | M14: 0 | W14: Bandes adhésives | X14: 1 | Y14: 0.01219512195 | AA14: Europe | AB14: =AB3+AB7+AB8+AB9+AB11+AB6+AB10 -> 60 | AC14: =AB14/$AB$16 -> 0.7317073171
K15: Menuiserie extérieure | L15: 2 | M15: 0.0243902439 | W15: Béton, Asphalte | X15: 1 | Y15: 0.01219512195
K16: Menuiserie intérieure | L16: 2 | M16: 0.0243902439 | W16: Caoutchouc | X16: 1 | Y16: 0.01219512195 | AA16: TOTAL | AB16: =SUM(AB3:AB13) -> 82
K17: Plafond | L17: 5 | M17: 0.06097560976 | W17: Métal, PVC | X17: 0 | Y17: 0
K18: Protection solaire | L18: 1 | M18: 0.01219512195 | W18: Non précisé | X18: 1 | Y18: 0.01219512195
K19: Revêtement de sol | L19: 3 | M19: 0.03658536585 | W19: Plâtre | X19: 1 | Y19: 0.01219512195
K20: Revêtement extérieur | L20: 1 | M20: 0.01219512195 | W20: Vitrage, aluminium, bois, plâtre | X20: 1 | Y20: 0.01219512195
K21: Revêtement intérieur | L21: 6 | M21: 0.07317073171 | W21: Vitrage, aluminium, bois, PVC | X21: 1 | Y21: 0.01219512195
K22: Sanitaires | L22: 1 | M22: 0.01219512195 | W22: Métal / résine plastique | X22: 1 | Y22: 0.01219512195
K23: Sécurité | L23: 0 | M23: 0
K24: Structure | L24: 14 | M24: 0.1707317073 | W24: Matières plastiques | X24: =$X$6+$X$11+$X$16+$X$19 -> 10 | Y24: =X24/$X$28 -> 0.1219512195
K25: Ventilation | L25: 0 | M25: 0 | W25: Matières métalliques | X25: =$X$3+$X$21+$X$20+$X$17+$X$12+$X$9 -> 34 | Y25: =X25/$X$28 -> 0.4146341463
W26: Matières d'origines naturelles | X26: =$X$5+$X$7+$X$8+$X$14+$X$17+$X$18+$X$19+$X$20+$X$22 -> 18 | Y26: =X26/$X$28 -> 0.2195121951
K27: TOTAL | L27: =SUM(L3:L25) -> 82 | Y27: =1-Y24-Y25-Y26 -> 0.243902439
W28: TOTAL | X28: =SUM(X3:X22) -> 82
K37: Revêtements de surface | L37: =L7+L6+L10+L16 -> 6 | M37: =L37/$L$27 -> 0.07317073171
K38: Second Œuvre | L38: =L11+L18+L19+L22+L24+L17+L12+L8+L21+L25+L15+L14 -> 36 | M38: =L38/$L$27 -> 0.4390243902
K39: CVC | L39: =L24+L18+L12 -> 17 | M39: =L39/$L$27 -> 0.2073170732

Sheet FormatFiche
E4: Fiche Matériau N° | G4: =INDEX(OFFSET(listeproduit,Fiches!A19,0),MATCH($E$5,listeproduit,0)) -> 1
E5: Assemblage Poteau / Toit
D6: Illustrations | E6: Classe produit | F6: Matériaux | H6: Source
E7: =INDEX(OFFSET(listeproduit,Fiches!A8,0),MATCH($E$5,listeproduit,0)) -> Assemblage | F7: =INDEX(OFFSET(listeproduit,Fiches!A11,0),MATCH($E$5,listeproduit,0)) -> Divers | H7: =INDEX(OFFSET(listeproduit,Fiches!A16,0),MATCH($E$5,listeproduit,0)) -> Publication
E8: Type de bâtiment visé | F8: Disponibilité Pays | H8: Stade d'évolution
E9: =INDEX(OFFSET(listeproduit,Fiches!A9,0),MATCH($E$5,listeproduit,0)) -> Tout type | F9: =INDEX(OFFSET(listeproduit,Fiches!A12,0),MATCH($E$5,listeproduit,0)) -> Inconnue | H9: =INDEX(OFFSET(listeproduit,Fiches!A13,0),MATCH($E$5,listeproduit,0)) -> Diffusion limitée
E10: Type de solution | F10: En quoi est-ce démontable ?
E11: =INDEX(OFFSET(listeproduit,Fiches!$A$7,0),MATCH($E$5,listeproduit,0)) -> Système constructif | F11: =IF(INDEX(OFFSET(listeproduit,Fiches!A14,0),MATCH($E$5,listeproduit,0))="","",INDEX(OFFSET(listeproduit,Fiches!A14,0),MATCH($E$5,listeproduit,0))) -> Fixation mécanique par tige filetée
E12: Fabricant
E13: =INDEX(OFFSET(listeproduit,Fiches!A10,0),MATCH($E$5,listeproduit,0)) -> ?
E14: Description technique
E15: =IF(INDEX(OFFSET(listeproduit,Fiches!A15,0),MATCH($E$5,listeproduit,0))="/","",INDEX(OFFSET(listeproduit,Fiches!A15,0),MATCH($E$5,listeproduit,0))) -> La tige filetée a une durée de vie importante et permet de ne pas mettre en péril la structure assemblée en nécessitant un remplacement de l'élément assembleur.
E16: Source documentaire
E17: =IF(INDEX(OFFSET(listeproduit,Fiches!A17,0),MATCH($E$5,listeproduit,0))="","",INDEX(OFFSET(listeproduit,Fiches!A17,0),MATCH($E$5,listeproduit,0))) -> Transformable_building_structures
